{"text_format":"1","workbook":"xlsx","n_sheets":5,"sheets":["Périodes","Nombre","Data_1","Data_2","Data_3"],"not_rendered":{"charts":0,"images":0,"macros":0,"external_links":0,"defined_names":16,"comments":0,"pivot_tables":0},"unopened":[],"bounds":{"document_bytes":16777216,"sheet_cells":100000,"rows_first":2000,"rows_last":500,"rows_between":2000,"halvings":0,"cell_chars":16384,"cell_head_chars":4096},"cells_cut":0,"cells_raw":0,"read":"whole","date_system":"1900"}

{"sheet":"Périodes","index":0,"n_rows":735,"n_cols":21,"rows_kept":735,"cut":false,"hidden":false,"merged":[[36,2,36,16],[37,2,37,16],[3,16,4,16],[0,1,0,16],[1,1,1,16],[2,1,2,16],[3,15,4,15],[35,2,35,16],[29,1,29,17]]}
[]
[]
[]
[null,null,null,null,null,null,null,null,null,null,null,null,null,null,null,"TOTAL","CUMUL\ndepuis 01/01",null,null,"2017-01-01","2017-03-05"]
[null,"Arrt","Ventes","En attente","Livraison","Motos","Fait","…",null,null,null,null,null,null,null,null,null,null,null,"2016-01-01"]
[null,1,{"$f":"SUMPRODUCT((VALUE(RIGHT(Data_1!$M$4:$M$29,2))=$B6)*(MID(Data_1!$W$4:$W$29,3,3)=\"nte\"))+SUMPRODUCT((Data_2!$C$2:$C$26=$B6)*(MID(Data_2!$I$2:$I$26,3,3)=\"nte\"))","v":1},{"$f":"SUMPRODUCT((VALUE(RIGHT(Data_1!$M$4:$M$29,2))=$B6)*(NOT(ISERROR(FIND(\"att\",Data_1!$W$4:$W$29)))))+SUMPRODUCT((Data_2!$C$2:$C$26=$B6)*(NOT(ISERROR(FIND(\"att\",Data_2!$I$2:$I$26)))))","v":1},{"$f":"SUMPRODUCT((VALUE(RIGHT(Data_1!$M$4:$M$29,2))=$B6)*(NOT(ISERROR(FIND(\"ivrai\",Data_1!$W$4:$W$29)))))+SUMPRODUCT((Data_2!$C$2:$C$26=$B6)*(NOT(ISERROR(FIND(\"ivrai\",Data_2!$I$2:$I$26)))))","v":1},null,null,null,null,null,null,null,null,null,null,{"$f":"SUM(C6:O6)","v":3},null,null,null,"2016-01-02"]
[null,2,{"$f":"SUMPRODUCT((VALUE(RIGHT(Data_1!$M$4:$M$29,2))=$B7)*(MID(Data_1!$W$4:$W$29,3,3)=\"nte\"))+SUMPRODUCT((Data_2!$C$2:$C$26=$B7)*(MID(Data_2!$I$2:$I$26,3,3)=\"nte\"))","v":0},{"$f":"SUMPRODUCT((VALUE(RIGHT(Data_1!$M$4:$M$29,2))=$B7)*(NOT(ISERROR(FIND(\"att\",Data_1!$W$4:$W$29)))))+SUMPRODUCT((Data_2!$C$2:$C$26=$B7)*(NOT(ISERROR(FIND(\"att\",Data_2!$I$2:$I$26)))))","v":1},{"$f":"SUMPRODUCT((VALUE(RIGHT(Data_1!$M$4:$M$29,2))=$B7)*(NOT(ISERROR(FIND(\"ivrai\",Data_1!$W$4:$W$29)))))+SUMPRODUCT((Data_2!$C$2:$C$26=$B7)*(NOT(ISERROR(FIND(\"ivrai\",Data_2!$I$2:$I$26)))))","v":0},null,null,null,null,null,null,null,null,null,null,{"$f":"SUM(C7:O7)","v":1},null,null,null,"2016-01-03"]
[null,3,{"$f":"SUMPRODUCT((VALUE(RIGHT(Data_1!$M$4:$M$29,2))=$B8)*(MID(Data_1!$W$4:$W$29,3,3)=\"nte\"))+SUMPRODUCT((Data_2!$C$2:$C$26=$B8)*(MID(Data_2!$I$2:$I$26,3,3)=\"nte\"))","v":1},{"$f":"SUMPRODUCT((VALUE(RIGHT(Data_1!$M$4:$M$29,2))=$B8)*(NOT(ISERROR(FIND(\"att\",Data_1!$W$4:$W$29)))))+SUMPRODUCT((Data_2!$C$2:$C$26=$B8)*(NOT(ISERROR(FIND(\"att\",Data_2!$I$2:$I$26)))))","v":1},{"$f":"SUMPRODUCT((VALUE(RIGHT(Data_1!$M$4:$M$29,2))=$B8)*(NOT(ISERROR(FIND(\"ivrai\",Data_1!$W$4:$W$29)))))+SUMPRODUCT((Data_2!$C$2:$C$26=$B8)*(NOT(ISERROR(FIND(\"ivrai\",Data_2!$I$2:$I$26)))))","v":0},null,null,null,null,null,null,null,null,null,null,2,null,null,null,"2016-01-04"]
[null,4,{"$f":"SUMPRODUCT((VALUE(RIGHT(Data_1!$M$4:$M$29,2))=$B9)*(MID(Data_1!$W$4:$W$29,3,3)=\"nte\"))+SUMPRODUCT((Data_2!$C$2:$C$26=$B9)*(MID(Data_2!$I$2:$I$26,3,3)=\"nte\"))","v":2},{"$f":"SUMPRODUCT((VALUE(RIGHT(Data_1!$M$4:$M$29,2))=$B9)*(NOT(ISERROR(FIND(\"att\",Data_1!$W$4:$W$29)))))+SUMPRODUCT((Data_2!$C$2:$C$26=$B9)*(NOT(ISERROR(FIND(\"att\",Data_2!$I$2:$I$26)))))","v":0},{"$f":"SUMPRODUCT((VALUE(RIGHT(Data_1!$M$4:$M$29,2))=$B9)*(NOT(ISERROR(FIND(\"ivrai\",Data_1!$W$4:$W$29)))))+SUMPRODUCT((Data_2!$C$2:$C$26=$B9)*(NOT(ISERROR(FIND(\"ivrai\",Data_2!$I$2:$I$26)))))","v":2},null,null,null,null,null,null,null,null,null,null,4,null,null,null,"2016-01-05"]
[null,5,{"$f":"SUMPRODUCT((VALUE(RIGHT(Data_1!$M$4:$M$29,2))=$B10)*(MID(Data_1!$W$4:$W$29,3,3)=\"nte\"))+SUMPRODUCT((Data_2!$C$2:$C$26=$B10)*(MID(Data_2!$I$2:$I$26,3,3)=\"nte\"))","v":2},{"$f":"SUMPRODUCT((VALUE(RIGHT(Data_1!$M$4:$M$29,2))=$B10)*(NOT(ISERROR(FIND(\"att\",Data_1!$W$4:$W$29)))))+SUMPRODUCT((Data_2!$C$2:$C$26=$B10)*(NOT(ISERROR(FIND(\"att\",Data_2!$I$2:$I$26)))))","v":1},{"$f":"SUMPRODUCT((VALUE(RIGHT(Data_1!$M$4:$M$29,2))=$B10)*(NOT(ISERROR(FIND(\"ivrai\",Data_1!$W$4:$W$29)))))+SUMPRODUCT((Data_2!$C$2:$C$26=$B10)*(NOT(ISERROR(FIND(\"ivrai\",Data_2!$I$2:$I$26)))))","v":1},null,null,null,null,null,null,null,null,null,null,4,null,null,null,"2016-01-06"]
[null,6,{"$f":"SUMPRODUCT((VALUE(RIGHT(Data_1!$M$4:$M$29,2))=$B11)*(MID(Data_1!$W$4:$W$29,3,3)=\"nte\"))+SUMPRODUCT((Data_2!$C$2:$C$26=$B11)*(MID(Data_2!$I$2:$I$26,3,3)=\"nte\"))","v":0},{"$f":"SUMPRODUCT((VALUE(RIGHT(Data_1!$M$4:$M$29,2))=$B11)*(NOT(ISERROR(FIND(\"att\",Data_1!$W$4:$W$29)))))+SUMPRODUCT((Data_2!$C$2:$C$26=$B11)*(NOT(ISERROR(FIND(\"att\",Data_2!$I$2:$I$26)))))","v":0},{"$f":"SUMPRODUCT((VALUE(RIGHT(Data_1!$M$4:$M$29,2))=$B11)*(NOT(ISERROR(FIND(\"ivrai\",Data_1!$W$4:$W$29)))))+SUMPRODUCT((Data_2!$C$2:$C$26=$B11)*(NOT(ISERROR(FIND(\"ivrai\",Data_2!$I$2:$I$26)))))","v":0},null,null,null,null,null,null,null,null,null,null,0,null,null,null,"2016-01-07"]
[null,7,{"$f":"SUMPRODUCT((VALUE(RIGHT(Data_1!$M$4:$M$29,2))=$B12)*(MID(Data_1!$W$4:$W$29,3,3)=\"nte\"))+SUMPRODUCT((Data_2!$C$2:$C$26=$B12)*(MID(Data_2!$I$2:$I$26,3,3)=\"nte\"))","v":1},{"$f":"SUMPRODUCT((VALUE(RIGHT(Data_1!$M$4:$M$29,2))=$B12)*(NOT(ISERROR(FIND(\"att\",Data_1!$W$4:$W$29)))))+SUMPRODUCT((Data_2!$C$2:$C$26=$B12)*(NOT(ISERROR(FIND(\"att\",Data_2!$I$2:$I$26)))))","v":0},{"$f":"SUMPRODUCT((VALUE(RIGHT(Data_1!$M$4:$M$29,2))=$B12)*(NOT(ISERROR(FIND(\"ivrai\",Data_1!$W$4:$W$29)))))+SUMPRODUCT((Data_2!$C$2:$C$26=$B12)*(NOT(ISERROR(FIND(\"ivrai\",Data_2!$I$2:$I$26)))))","v":1},null,null,null,null,null,null,null,null,null,null,2,null,null,null,"2016-01-08"]
[null,8,{"$f":"SUMPRODUCT((VALUE(RIGHT(Data_1!$M$4:$M$29,2))=$B13)*(MID(Data_1!$W$4:$W$29,3,3)=\"nte\"))+SUMPRODUCT((Data_2!$C$2:$C$26=$B13)*(MID(Data_2!$I$2:$I$26,3,3)=\"nte\"))","v":0},{"$f":"SUMPRODUCT((VALUE(RIGHT(Data_1!$M$4:$M$29,2))=$B13)*(NOT(ISERROR(FIND(\"att\",Data_1!$W$4:$W$29)))))+SUMPRODUCT((Data_2!$C$2:$C$26=$B13)*(NOT(ISERROR(FIND(\"att\",Data_2!$I$2:$I$26)))))","v":0},{"$f":"SUMPRODUCT((VALUE(RIGHT(Data_1!$M$4:$M$29,2))=$B13)*(NOT(ISERROR(FIND(\"ivrai\",Data_1!$W$4:$W$29)))))+SUMPRODUCT((Data_2!$C$2:$C$26=$B13)*(NOT(ISERROR(FIND(\"ivrai\",Data_2!$I$2:$I$26)))))","v":0},null,null,null,null,null,null,null,null,null,null,0,null,null,null,"2016-01-09"]
[null,9,{"$f":"SUMPRODUCT((VALUE(RIGHT(Data_1!$M$4:$M$29,2))=$B14)*(MID(Data_1!$W$4:$W$29,3,3)=\"nte\"))+SUMPRODUCT((Data_2!$C$2:$C$26=$B14)*(MID(Data_2!$I$2:$I$26,3,3)=\"nte\"))","v":2},{"$f":"SUMPRODUCT((VALUE(RIGHT(Data_1!$M$4:$M$29,2))=$B14)*(NOT(ISERROR(FIND(\"att\",Data_1!$W$4:$W$29)))))+SUMPRODUCT((Data_2!$C$2:$C$26=$B14)*(NOT(ISERROR(FIND(\"att\",Data_2!$I$2:$I$26)))))","v":0},{"$f":"SUMPRODUCT((VALUE(RIGHT(Data_1!$M$4:$M$29,2))=$B14)*(NOT(ISERROR(FIND(\"ivrai\",Data_1!$W$4:$W$29)))))+SUMPRODUCT((Data_2!$C$2:$C$26=$B14)*(NOT(ISERROR(FIND(\"ivrai\",Data_2!$I$2:$I$26)))))","v":0},null,null,null,null,null,null,null,null,null,null,2,null,null,null,"2016-01-10"]
[null,10,{"$f":"SUMPRODUCT((VALUE(RIGHT(Data_1!$M$4:$M$29,2))=$B15)*(MID(Data_1!$W$4:$W$29,3,3)=\"nte\"))+SUMPRODUCT((Data_2!$C$2:$C$26=$B15)*(MID(Data_2!$I$2:$I$26,3,3)=\"nte\"))","v":0},{"$f":"SUMPRODUCT((VALUE(RIGHT(Data_1!$M$4:$M$29,2))=$B15)*(NOT(ISERROR(FIND(\"att\",Data_1!$W$4:$W$29)))))+SUMPRODUCT((Data_2!$C$2:$C$26=$B15)*(NOT(ISERROR(FIND(\"att\",Data_2!$I$2:$I$26)))))","v":3},{"$f":"SUMPRODUCT((VALUE(RIGHT(Data_1!$M$4:$M$29,2))=$B15)*(NOT(ISERROR(FIND(\"ivrai\",Data_1!$W$4:$W$29)))))+SUMPRODUCT((Data_2!$C$2:$C$26=$B15)*(NOT(ISERROR(FIND(\"ivrai\",Data_2!$I$2:$I$26)))))","v":1},null,null,null,null,null,null,null,null,null,null,4,null,null,null,"2016-01-11"]
[null,11,{"$f":"SUMPRODUCT((VALUE(RIGHT(Data_1!$M$4:$M$29,2))=$B16)*(MID(Data_1!$W$4:$W$29,3,3)=\"nte\"))+SUMPRODUCT((Data_2!$C$2:$C$26=$B16)*(MID(Data_2!$I$2:$I$26,3,3)=\"nte\"))","v":1},{"$f":"SUMPRODUCT((VALUE(RIGHT(Data_1!$M$4:$M$29,2))=$B16)*(NOT(ISERROR(FIND(\"att\",Data_1!$W$4:$W$29)))))+SUMPRODUCT((Data_2!$C$2:$C$26=$B16)*(NOT(ISERROR(FIND(\"att\",Data_2!$I$2:$I$26)))))","v":0},{"$f":"SUMPRODUCT((VALUE(RIGHT(Data_1!$M$4:$M$29,2))=$B16)*(NOT(ISERROR(FIND(\"ivrai\",Data_1!$W$4:$W$29)))))+SUMPRODUCT((Data_2!$C$2:$C$26=$B16)*(NOT(ISERROR(FIND(\"ivrai\",Data_2!$I$2:$I$26)))))","v":1},null,null,null,null,null,null,null,null,null,null,2,null,null,null,"2016-01-12"]
[null,12,{"$f":"SUMPRODUCT((VALUE(RIGHT(Data_1!$M$4:$M$29,2))=$B17)*(MID(Data_1!$W$4:$W$29,3,3)=\"nte\"))+SUMPRODUCT((Data_2!$C$2:$C$26=$B17)*(MID(Data_2!$I$2:$I$26,3,3)=\"nte\"))","v":1},{"$f":"SUMPRODUCT((VALUE(RIGHT(Data_1!$M$4:$M$29,2))=$B17)*(NOT(ISERROR(FIND(\"att\",Data_1!$W$4:$W$29)))))+SUMPRODUCT((Data_2!$C$2:$C$26=$B17)*(NOT(ISERROR(FIND(\"att\",Data_2!$I$2:$I$26)))))","v":0},{"$f":"SUMPRODUCT((VALUE(RIGHT(Data_1!$M$4:$M$29,2))=$B17)*(NOT(ISERROR(FIND(\"ivrai\",Data_1!$W$4:$W$29)))))+SUMPRODUCT((Data_2!$C$2:$C$26=$B17)*(NOT(ISERROR(FIND(\"ivrai\",Data_2!$I$2:$I$26)))))","v":0},null,null,null,null,null,null,null,null,null,null,1,null,null,null,"2016-01-13"]
[null,13,{"$f":"SUMPRODUCT((VALUE(RIGHT(Data_1!$M$4:$M$29,2))=$B18)*(MID(Data_1!$W$4:$W$29,3,3)=\"nte\"))+SUMPRODUCT((Data_2!$C$2:$C$26=$B18)*(MID(Data_2!$I$2:$I$26,3,3)=\"nte\"))","v":0},{"$f":"SUMPRODUCT((VALUE(RIGHT(Data_1!$M$4:$M$29,2))=$B18)*(NOT(ISERROR(FIND(\"att\",Data_1!$W$4:$W$29)))))+SUMPRODUCT((Data_2!$C$2:$C$26=$B18)*(NOT(ISERROR(FIND(\"att\",Data_2!$I$2:$I$26)))))","v":0},{"$f":"SUMPRODUCT((VALUE(RIGHT(Data_1!$M$4:$M$29,2))=$B18)*(NOT(ISERROR(FIND(\"ivrai\",Data_1!$W$4:$W$29)))))+SUMPRODUCT((Data_2!$C$2:$C$26=$B18)*(NOT(ISERROR(FIND(\"ivrai\",Data_2!$I$2:$I$26)))))","v":0},null,null,null,null,null,null,null,null,null,null,0,null,null,null,"2016-01-14"]
[null,14,{"$f":"SUMPRODUCT((VALUE(RIGHT(Data_1!$M$4:$M$29,2))=$B19)*(MID(Data_1!$W$4:$W$29,3,3)=\"nte\"))+SUMPRODUCT((Data_2!$C$2:$C$26=$B19)*(MID(Data_2!$I$2:$I$26,3,3)=\"nte\"))","v":0},{"$f":"SUMPRODUCT((VALUE(RIGHT(Data_1!$M$4:$M$29,2))=$B19)*(NOT(ISERROR(FIND(\"att\",Data_1!$W$4:$W$29)))))+SUMPRODUCT((Data_2!$C$2:$C$26=$B19)*(NOT(ISERROR(FIND(\"att\",Data_2!$I$2:$I$26)))))","v":0},{"$f":"SUMPRODUCT((VALUE(RIGHT(Data_1!$M$4:$M$29,2))=$B19)*(NOT(ISERROR(FIND(\"ivrai\",Data_1!$W$4:$W$29)))))+SUMPRODUCT((Data_2!$C$2:$C$26=$B19)*(NOT(ISERROR(FIND(\"ivrai\",Data_2!$I$2:$I$26)))))","v":0},null,null,null,null,null,null,null,null,null,null,0,null,null,null,"2016-01-15"]
[null,15,{"$f":"SUMPRODUCT((VALUE(RIGHT(Data_1!$M$4:$M$29,2))=$B20)*(MID(Data_1!$W$4:$W$29,3,3)=\"nte\"))+SUMPRODUCT((Data_2!$C$2:$C$26=$B20)*(MID(Data_2!$I$2:$I$26,3,3)=\"nte\"))","v":1},{"$f":"SUMPRODUCT((VALUE(RIGHT(Data_1!$M$4:$M$29,2))=$B20)*(NOT(ISERROR(FIND(\"att\",Data_1!$W$4:$W$29)))))+SUMPRODUCT((Data_2!$C$2:$C$26=$B20)*(NOT(ISERROR(FIND(\"att\",Data_2!$I$2:$I$26)))))","v":3},{"$f":"SUMPRODUCT((VALUE(RIGHT(Data_1!$M$4:$M$29,2))=$B20)*(NOT(ISERROR(FIND(\"ivrai\",Data_1!$W$4:$W$29)))))+SUMPRODUCT((Data_2!$C$2:$C$26=$B20)*(NOT(ISERROR(FIND(\"ivrai\",Data_2!$I$2:$I$26)))))","v":0},null,null,null,null,null,null,null,null,null,null,4,null,null,null,"2016-01-16"]
[null,16,{"$f":"SUMPRODUCT((VALUE(RIGHT(Data_1!$M$4:$M$29,2))=$B21)*(MID(Data_1!$W$4:$W$29,3,3)=\"nte\"))+SUMPRODUCT((Data_2!$C$2:$C$26=$B21)*(MID(Data_2!$I$2:$I$26,3,3)=\"nte\"))","v":0},{"$f":"SUMPRODUCT((VALUE(RIGHT(Data_1!$M$4:$M$29,2))=$B21)*(NOT(ISERROR(FIND(\"att\",Data_1!$W$4:$W$29)))))+SUMPRODUCT((Data_2!$C$2:$C$26=$B21)*(NOT(ISERROR(FIND(\"att\",Data_2!$I$2:$I$26)))))","v":0},{"$f":"SUMPRODUCT((VALUE(RIGHT(Data_1!$M$4:$M$29,2))=$B21)*(NOT(ISERROR(FIND(\"ivrai\",Data_1!$W$4:$W$29)))))+SUMPRODUCT((Data_2!$C$2:$C$26=$B21)*(NOT(ISERROR(FIND(\"ivrai\",Data_2!$I$2:$I$26)))))","v":0},null,null,null,null,null,null,null,null,null,null,0,null,null,null,"2016-01-17"]
[null,17,{"$f":"SUMPRODUCT((VALUE(RIGHT(Data_1!$M$4:$M$29,2))=$B22)*(MID(Data_1!$W$4:$W$29,3,3)=\"nte\"))+SUMPRODUCT((Data_2!$C$2:$C$26=$B22)*(MID(Data_2!$I$2:$I$26,3,3)=\"nte\"))","v":0},{"$f":"SUMPRODUCT((VALUE(RIGHT(Data_1!$M$4:$M$29,2))=$B22)*(NOT(ISERROR(FIND(\"att\",Data_1!$W$4:$W$29)))))+SUMPRODUCT((Data_2!$C$2:$C$26=$B22)*(NOT(ISERROR(FIND(\"att\",Data_2!$I$2:$I$26)))))","v":0},{"$f":"SUMPRODUCT((VALUE(RIGHT(Data_1!$M$4:$M$29,2))=$B22)*(NOT(ISERROR(FIND(\"ivrai\",Data_1!$W$4:$W$29)))))+SUMPRODUCT((Data_2!$C$2:$C$26=$B22)*(NOT(ISERROR(FIND(\"ivrai\",Data_2!$I$2:$I$26)))))","v":0},null,null,null,null,null,null,null,null,null,null,0,null,null,null,"2016-01-18"]
[null,18,{"$f":"SUMPRODUCT((VALUE(RIGHT(Data_1!$M$4:$M$29,2))=$B23)*(MID(Data_1!$W$4:$W$29,3,3)=\"nte\"))+SUMPRODUCT((Data_2!$C$2:$C$26=$B23)*(MID(Data_2!$I$2:$I$26,3,3)=\"nte\"))","v":1},{"$f":"SUMPRODUCT((VALUE(RIGHT(Data_1!$M$4:$M$29,2))=$B23)*(NOT(ISERROR(FIND(\"att\",Data_1!$W$4:$W$29)))))+SUMPRODUCT((Data_2!$C$2:$C$26=$B23)*(NOT(ISERROR(FIND(\"att\",Data_2!$I$2:$I$26)))))","v":2},{"$f":"SUMPRODUCT((VALUE(RIGHT(Data_1!$M$4:$M$29,2))=$B23)*(NOT(ISERROR(FIND(\"ivrai\",Data_1!$W$4:$W$29)))))+SUMPRODUCT((Data_2!$C$2:$C$26=$B23)*(NOT(ISERROR(FIND(\"ivrai\",Data_2!$I$2:$I$26)))))","v":1},null,null,null,null,null,null,null,null,null,null,4,null,null,null,"2016-01-19"]
[null,19,{"$f":"SUMPRODUCT((VALUE(RIGHT(Data_1!$M$4:$M$29,2))=$B24)*(MID(Data_1!$W$4:$W$29,3,3)=\"nte\"))+SUMPRODUCT((Data_2!$C$2:$C$26=$B24)*(MID(Data_2!$I$2:$I$26,3,3)=\"nte\"))","v":4},{"$f":"SUMPRODUCT((VALUE(RIGHT(Data_1!$M$4:$M$29,2))=$B24)*(NOT(ISERROR(FIND(\"att\",Data_1!$W$4:$W$29)))))+SUMPRODUCT((Data_2!$C$2:$C$26=$B24)*(NOT(ISERROR(FIND(\"att\",Data_2!$I$2:$I$26)))))","v":2},{"$f":"SUMPRODUCT((VALUE(RIGHT(Data_1!$M$4:$M$29,2))=$B24)*(NOT(ISERROR(FIND(\"ivrai\",Data_1!$W$4:$W$29)))))+SUMPRODUCT((Data_2!$C$2:$C$26=$B24)*(NOT(ISERROR(FIND(\"ivrai\",Data_2!$I$2:$I$26)))))","v":0},null,null,null,null,null,null,null,null,null,null,6,null,null,null,"2016-01-20"]
[null,20,{"$f":"SUMPRODUCT((VALUE(RIGHT(Data_1!$M$4:$M$29,2))=$B25)*(MID(Data_1!$W$4:$W$29,3,3)=\"nte\"))+SUMPRODUCT((Data_2!$C$2:$C$26=$B25)*(MID(Data_2!$I$2:$I$26,3,3)=\"nte\"))","v":1},{"$f":"SUMPRODUCT((VALUE(RIGHT(Data_1!$M$4:$M$29,2))=$B25)*(NOT(ISERROR(FIND(\"att\",Data_1!$W$4:$W$29)))))+SUMPRODUCT((Data_2!$C$2:$C$26=$B25)*(NOT(ISERROR(FIND(\"att\",Data_2!$I$2:$I$26)))))","v":3},{"$f":"SUMPRODUCT((VALUE(RIGHT(Data_1!$M$4:$M$29,2))=$B25)*(NOT(ISERROR(FIND(\"ivrai\",Data_1!$W$4:$W$29)))))+SUMPRODUCT((Data_2!$C$2:$C$26=$B25)*(NOT(ISERROR(FIND(\"ivrai\",Data_2!$I$2:$I$26)))))","v":0},null,null,null,null,null,null,null,null,null,null,4,null,null,null,"2016-01-21"]
[null,"TOTAL",{"$f":"SUM(C6:C25)","v":18},17,8,0,0,0,0,0,0,0,0,0,0,43,0,null,null,"2016-01-22"]
[null,null,null,null,null,null,null,null,null,null,null,null,null,null,null,null,null,null,null,"2016-01-23"]
[null,null,null,null,null,null,null,null,null,null,null,null,null,null,null,null,null,null,null,"2016-01-24"]
[null,null,null,null,null,null,null,null,null,null,null,null,null,null,null,null,null,null,null,"2016-01-25"]
[null,"Bonjour à toutes et à tous, je souhaiterai regrouper les données (État) de la colonne W pour Data_1 et I pour Data_2 par arrondissement et par période",null,null,null,null,null,null,null,null,null,null,null,null,null,null,null,null,null,"2016-01-26"]
[null,null,null,null,null,null,null,null,null,null,null,null,null,null,null,null,null,null,null,"2016-01-27"]
[null,null,null,null,null,null,null,null,null,null,null,null,null,null,null,null,null,null,null,"2016-01-28"]
[null,null,null,null,null,null,null,null,null,null,null,null,null,null,null,null,null,null,null,"2016-01-29"]
[null,null,null,null,null,null,null,null,null,null,null,null,null,null,null,null,null,null,null,"2016-01-30"]
[null,null,null,null,null,null,null,null,null,null,null,null,null,null,null,null,null,null,null,"2016-01-31"]
[null,null,null,null,null,null,null,null,null,null,null,null,null,null,null,null,null,null,null,"2016-02-01"]
[null,null,null,null,null,null,null,null,null,null,null,null,null,null,null,null,null,null,null,"2016-02-02"]
[null,null,null,null,null,null,null,null,null,null,null,null,null,null,null,null,null,null,null,"2016-02-03"]
[null,null,null,null,null,null,null,null,null,null,null,null,null,null,null,null,null,null,null,"2016-02-04"]
[null,null,null,null,null,null,null,null,null,null,null,null,null,null,null,null,null,null,null,"2016-02-05"]
[null,null,null,null,null,null,null,null,null,null,null,null,null,null,null,null,null,null,null,"2016-02-06"]
[null,null,null,null,null,null,null,null,null,null,null,null,null,null,null,null,null,null,null,"2016-02-07"]
[null,null,null,null,null,null,null,null,null,null,null,null,null,null,null,null,null,null,null,"2016-02-08"]
[null,null,null,null,null,null,null,null,null,null,null,null,null,null,null,null,null,null,null,"2016-02-09"]
[null,null,null,null,null,null,null,null,null,null,null,null,null,null,null,null,null,null,null,"2016-02-10"]
[null,null,null,null,null,null,null,null,null,null,null,null,null,null,null,null,null,null,null,"2016-02-11"]
[null,null,null,null,null,null,null,null,null,null,null,null,null,null,null,null,null,null,null,"2016-02-12"]
[null,null,null,null,null,null,null,null,null,null,null,null,null,null,null,null,null,null,null,"2016-02-13"]
[null,null,null,null,null,null,null,null,null,null,null,null,null,null,null,null,null,null,null,"2016-02-14"]
[null,null,null,null,null,null,null,null,null,null,null,null,null,null,null,null,null,null,null,"2016-02-15"]
[null,null,null,null,null,null,null,null,null,null,null,null,null,null,null,null,null,null,null,"2016-02-16"]
[null,null,null,null,null,null,null,null,null,null,null,null,null,null,null,null,null,null,null,"2016-02-17"]
[null,null,null,null,null,null,null,null,null,null,null,null,null,null,null,null,null,null,null,"2016-02-18"]
[null,null,null,null,null,null,null,null,null,null,null,null,null,null,null,null,null,null,null,"2016-02-19"]
[null,null,null,null,null,null,null,null,null,null,null,null,null,null,null,null,null,null,null,"2016-02-20"]
[null,null,null,null,null,null,null,null,null,null,null,null,null,null,null,null,null,null,null,"2016-02-21"]
[null,null,null,null,null,null,null,null,null,null,null,null,null,null,null,null,null,null,null,"2016-02-22"]
[null,null,null,null,null,null,null,null,null,null,null,null,null,null,null,null,null,null,null,"2016-02-23"]
[null,null,null,null,null,null,null,null,null,null,null,null,null,null,null,null,null,null,null,"2016-02-24"]
[null,null,null,null,null,null,null,null,null,null,null,null,null,null,null,null,null,null,null,"2016-02-25"]
[null,null,null,null,null,null,null,null,null,null,null,null,null,null,null,null,null,null,null,"2016-02-26"]
[null,null,null,null,null,null,null,null,null,null,null,null,null,null,null,null,null,null,null,"2016-02-27"]
[null,null,null,null,null,null,null,null,null,null,null,null,null,null,null,null,null,null,null,"2016-02-28"]
[null,null,null,null,null,null,null,null,null,null,null,null,null,null,null,null,null,null,null,"2016-02-29"]
[null,null,null,null,null,null,null,null,null,null,null,null,null,null,null,null,null,null,null,"2016-03-01"]
[null,null,null,null,null,null,null,null,null,null,null,null,null,null,null,null,null,null,null,"2016-03-02"]
[null,null,null,null,null,null,null,null,null,null,null,null,null,null,null,null,null,null,null,"2016-03-03"]
[null,null,null,null,null,null,null,null,null,null,null,null,null,null,null,null,null,null,null,"2016-03-04"]
[null,null,null,null,null,null,null,null,null,null,null,null,null,null,null,null,null,null,null,"2016-03-05"]
[null,null,null,null,null,null,null,null,null,null,null,null,null,null,null,null,null,null,null,"2016-03-06"]
[null,null,null,null,null,null,null,null,null,null,null,null,null,null,null,null,null,null,null,"2016-03-07"]
[null,null,null,null,null,null,null,null,null,null,null,null,null,null,null,null,null,null,null,"2016-03-08"]
[null,null,null,null,null,null,null,null,null,null,null,null,null,null,null,null,null,null,null,"2016-03-09"]
[null,null,null,null,null,null,null,null,null,null,null,null,null,null,null,null,null,null,null,"2016-03-10"]
[null,null,null,null,null,null,null,null,null,null,null,null,null,null,null,null,null,null,null,"2016-03-11"]
[null,null,null,null,null,null,null,null,null,null,null,null,null,null,null,null,null,null,null,"2016-03-12"]
[null,null,null,null,null,null,null,null,null,null,null,null,null,null,null,null,null,null,null,"2016-03-13"]
[null,null,null,null,null,null,null,null,null,null,null,null,null,null,null,null,null,null,null,"2016-03-14"]
[null,null,null,null,null,null,null,null,null,null,null,null,null,null,null,null,null,null,null,"2016-03-15"]
[null,null,null,null,null,null,null,null,null,null,null,null,null,null,null,null,null,null,null,"2016-03-16"]
[null,null,null,null,null,null,null,null,null,null,null,null,null,null,null,null,null,null,null,"2016-03-17"]
[null,null,null,null,null,null,null,null,null,null,null,null,null,null,null,null,null,null,null,"2016-03-18"]
[null,null,null,null,null,null,null,null,null,null,null,null,null,null,null,null,null,null,null,"2016-03-19"]
[null,null,null,null,null,null,null,null,null,null,null,null,null,null,null,null,null,null,null,"2016-03-20"]
[null,null,null,null,null,null,null,null,null,null,null,null,null,null,null,null,null,null,null,"2016-03-21"]
[null,null,null,null,null,null,null,null,null,null,null,null,null,null,null,null,null,null,null,"2016-03-22"]
[null,null,null,null,null,null,null,null,null,null,null,null,null,null,null,null,null,null,null,"2016-03-23"]
[null,null,null,null,null,null,null,null,null,null,null,null,null,null,null,null,null,null,null,"2016-03-24"]
[null,null,null,null,null,null,null,null,null,null,null,null,null,null,null,null,null,null,null,"2016-03-25"]
[null,null,null,null,null,null,null,null,null,null,null,null,null,null,null,null,null,null,null,"2016-03-26"]
[null,null,null,null,null,null,null,null,null,null,null,null,null,null,null,null,null,null,null,"2016-03-27"]
[null,null,null,null,null,null,null,null,null,null,null,null,null,null,null,null,null,null,null,"2016-03-28"]
[null,null,null,null,null,null,null,null,null,null,null,null,null,null,null,null,null,null,null,"2016-03-29"]
[null,null,null,null,null,null,null,null,null,null,null,null,null,null,null,null,null,null,null,"2016-03-30"]
[null,null,null,null,null,null,null,null,null,null,null,null,null,null,null,null,null,null,null,"2016-03-31"]
[null,null,null,null,null,null,null,null,null,null,null,null,null,null,null,null,null,null,null,"2016-04-01"]
[null,null,null,null,null,null,null,null,null,null,null,null,null,null,null,null,null,null,null,"2016-04-02"]
[null,null,null,null,null,null,null,null,null,null,null,null,null,null,null,null,null,null,null,"2016-04-03"]
[null,null,null,null,null,null,null,null,null,null,null,null,null,null,null,null,null,null,null,"2016-04-04"]
[null,null,null,null,null,null,null,null,null,null,null,null,null,null,null,null,null,null,null,"2016-04-05"]
[null,null,null,null,null,null,null,null,null,null,null,null,null,null,null,null,null,null,null,"2016-04-06"]
[null,null,null,null,null,null,null,null,null,null,null,null,null,null,null,null,null,null,null,"2016-04-07"]
[null,null,null,null,null,null,null,null,null,null,null,null,null,null,null,null,null,null,null,"2016-04-08"]
[null,null,null,null,null,null,null,null,null,null,null,null,null,null,null,null,null,null,null,"2016-04-09"]
[null,null,null,null,null,null,null,null,null,null,null,null,null,null,null,null,null,null,null,"2016-04-10"]
[null,null,null,null,null,null,null,null,null,null,null,null,null,null,null,null,null,null,null,"2016-04-11"]
[null,null,null,null,null,null,null,null,null,null,null,null,null,null,null,null,null,null,null,"2016-04-12"]
[null,null,null,null,null,null,null,null,null,null,null,null,null,null,null,null,null,null,null,"2016-04-13"]
[null,null,null,null,null,null,null,null,null,null,null,null,null,null,null,null,null,null,null,"2016-04-14"]
[null,null,null,null,null,null,null,null,null,null,null,null,null,null,null,null,null,null,null,"2016-04-15"]
[null,null,null,null,null,null,null,null,null,null,null,null,null,null,null,null,null,null,null,"2016-04-16"]
[null,null,null,null,null,null,null,null,null,null,null,null,null,null,null,null,null,null,null,"2016-04-17"]
[null,null,null,null,null,null,null,null,null,null,null,null,null,null,null,null,null,null,null,"2016-04-18"]
[null,null,null,null,null,null,null,null,null,null,null,null,null,null,null,null,null,null,null,"2016-04-19"]
[null,null,null,null,null,null,null,null,null,null,null,null,null,null,null,null,null,null,null,"2016-04-20"]
[null,null,null,null,null,null,null,null,null,null,null,null,null,null,null,null,null,null,null,"2016-04-21"]
[null,null,null,null,null,null,null,null,null,null,null,null,null,null,null,null,null,null,null,"2016-04-22"]
[null,null,null,null,null,null,null,null,null,null,null,null,null,null,null,null,null,null,null,"2016-04-23"]
[null,null,null,null,null,null,null,null,null,null,null,null,null,null,null,null,null,null,null,"2016-04-24"]
[null,null,null,null,null,null,null,null,null,null,null,null,null,null,null,null,null,null,null,"2016-04-25"]
[null,null,null,null,null,null,null,null,null,null,null,null,null,null,null,null,null,null,null,"2016-04-26"]
[null,null,null,null,null,null,null,null,null,null,null,null,null,null,null,null,null,null,null,"2016-04-27"]
[null,null,null,null,null,null,null,null,null,null,null,null,null,null,null,null,null,null,null,"2016-04-28"]
[null,null,null,null,null,null,null,null,null,null,null,null,null,null,null,null,null,null,null,"2016-04-29"]
[null,null,null,null,null,null,null,null,null,null,null,null,null,null,null,null,null,null,null,"2016-04-30"]
[null,null,null,null,null,null,null,null,null,null,null,null,null,null,null,null,null,null,null,"2016-05-01"]
[null,null,null,null,null,null,null,null,null,null,null,null,null,null,null,null,null,null,null,"2016-05-02"]
[null,null,null,null,null,null,null,null,null,null,null,null,null,null,null,null,null,null,null,"2016-05-03"]
[null,null,null,null,null,null,null,null,null,null,null,null,null,null,null,null,null,null,null,"2016-05-04"]
[null,null,null,null,null,null,null,null,null,null,null,null,null,null,null,null,null,null,null,"2016-05-05"]
[null,null,null,null,null,null,null,null,null,null,null,null,null,null,null,null,null,null,null,"2016-05-06"]
[null,null,null,null,null,null,null,null,null,null,null,null,null,null,null,null,null,null,null,"2016-05-07"]
[null,null,null,null,null,null,null,null,null,null,null,null,null,null,null,null,null,null,null,"2016-05-08"]
[null,null,null,null,null,null,null,null,null,null,null,null,null,null,null,null,null,null,null,"2016-05-09"]
[null,null,null,null,null,null,null,null,null,null,null,null,null,null,null,null,null,null,null,"2016-05-10"]
[null,null,null,null,null,null,null,null,null,null,null,null,null,null,null,null,null,null,null,"2016-05-11"]
[null,null,null,null,null,null,null,null,null,null,null,null,null,null,null,null,null,null,null,"2016-05-12"]
[null,null,null,null,null,null,null,null,null,null,null,null,null,null,null,null,null,null,null,"2016-05-13"]
[null,null,null,null,null,null,null,null,null,null,null,null,null,null,null,null,null,null,null,"2016-05-14"]
[null,null,null,null,null,null,null,null,null,null,null,null,null,null,null,null,null,null,null,"2016-05-15"]
[null,null,null,null,null,null,null,null,null,null,null,null,null,null,null,null,null,null,null,"2016-05-16"]
[null,null,null,null,null,null,null,null,null,null,null,null,null,null,null,null,null,null,null,"2016-05-17"]
[null,null,null,null,null,null,null,null,null,null,null,null,null,null,null,null,null,null,null,"2016-05-18"]
[null,null,null,null,null,null,null,null,null,null,null,null,null,null,null,null,null,null,null,"2016-05-19"]
[null,null,null,null,null,null,null,null,null,null,null,null,null,null,null,null,null,null,null,"2016-05-20"]
[null,null,null,null,null,null,null,null,null,null,null,null,null,null,null,null,null,null,null,"2016-05-21"]
[null,null,null,null,null,null,null,null,null,null,null,null,null,null,null,null,null,null,null,"2016-05-22"]
[null,null,null,null,null,null,null,null,null,null,null,null,null,null,null,null,null,null,null,"2016-05-23"]
[null,null,null,null,null,null,null,null,null,null,null,null,null,null,null,null,null,null,null,"2016-05-24"]
[null,null,null,null,null,null,null,null,null,null,null,null,null,null,null,null,null,null,null,"2016-05-25"]
[null,null,null,null,null,null,null,null,null,null,null,null,null,null,null,null,null,null,null,"2016-05-26"]
[null,null,null,null,null,null,null,null,null,null,null,null,null,null,null,null,null,null,null,"2016-05-27"]
[null,null,null,null,null,null,null,null,null,null,null,null,null,null,null,null,null,null,null,"2016-05-28"]
[null,null,null,null,null,null,null,null,null,null,null,null,null,null,null,null,null,null,null,"2016-05-29"]
[null,null,null,null,null,null,null,null,null,null,null,null,null,null,null,null,null,null,null,"2016-05-30"]
[null,null,null,null,null,null,null,null,null,null,null,null,null,null,null,null,null,null,null,"2016-05-31"]
[null,null,null,null,null,null,null,null,null,null,null,null,null,null,null,null,null,null,null,"2016-06-01"]
[null,null,null,null,null,null,null,null,null,null,null,null,null,null,null,null,null,null,null,"2016-06-02"]
[null,null,null,null,null,null,null,null,null,null,null,null,null,null,null,null,null,null,null,"2016-06-03"]
[null,null,null,null,null,null,null,null,null,null,null,null,null,null,null,null,null,null,null,"2016-06-04"]
[null,null,null,null,null,null,null,null,null,null,null,null,null,null,null,null,null,null,null,"2016-06-05"]
[null,null,null,null,null,null,null,null,null,null,null,null,null,null,null,null,null,null,null,"2016-06-06"]
[null,null,null,null,null,null,null,null,null,null,null,null,null,null,null,null,null,null,null,"2016-06-07"]
[null,null,null,null,null,null,null,null,null,null,null,null,null,null,null,null,null,null,null,"2016-06-08"]
[null,null,null,null,null,null,null,null,null,null,null,null,null,null,null,null,null,null,null,"2016-06-09"]
[null,null,null,null,null,null,null,null,null,null,null,null,null,null,null,null,null,null,null,"2016-06-10"]
[null,null,null,null,null,null,null,null,null,null,null,null,null,null,null,null,null,null,null,"2016-06-11"]
[null,null,null,null,null,null,null,null,null,null,null,null,null,null,null,null,null,null,null,"2016-06-12"]
[null,null,null,null,null,null,null,null,null,null,null,null,null,null,null,null,null,null,null,"2016-06-13"]
[null,null,null,null,null,null,null,null,null,null,null,null,null,null,null,null,null,null,null,"2016-06-14"]
[null,null,null,null,null,null,null,null,null,null,null,null,null,null,null,null,null,null,null,"2016-06-15"]
[null,null,null,null,null,null,null,null,null,null,null,null,null,null,null,null,null,null,null,"2016-06-16"]
[null,null,null,null,null,null,null,null,null,null,null,null,null,null,null,null,null,null,null,"2016-06-17"]
[null,null,null,null,null,null,null,null,null,null,null,null,null,null,null,null,null,null,null,"2016-06-18"]
[null,null,null,null,null,null,null,null,null,null,null,null,null,null,null,null,null,null,null,"2016-06-19"]
[null,null,null,null,null,null,null,null,null,null,null,null,null,null,null,null,null,null,null,"2016-06-20"]
[null,null,null,null,null,null,null,null,null,null,null,null,null,null,null,null,null,null,null,"2016-06-21"]
[null,null,null,null,null,null,null,null,null,null,null,null,null,null,null,null,null,null,null,"2016-06-22"]
[null,null,null,null,null,null,null,null,null,null,null,null,null,null,null,null,null,null,null,"2016-06-23"]
[null,null,null,null,null,null,null,null,null,null,null,null,null,null,null,null,null,null,null,"2016-06-24"]
[null,null,null,null,null,null,null,null,null,null,null,null,null,null,null,null,null,null,null,"2016-06-25"]
[null,null,null,null,null,null,null,null,null,null,null,null,null,null,null,null,null,null,null,"2016-06-26"]
[null,null,null,null,null,null,null,null,null,null,null,null,null,null,null,null,null,null,null,"2016-06-27"]
[null,null,null,null,null,null,null,null,null,null,null,null,null,null,null,null,null,null,null,"2016-06-28"]
[null,null,null,null,null,null,null,null,null,null,null,null,null,null,null,null,null,null,null,"2016-06-29"]
[null,null,null,null,null,null,null,null,null,null,null,null,null,null,null,null,null,null,null,"2016-06-30"]
[null,null,null,null,null,null,null,null,null,null,null,null,null,null,null,null,null,null,null,"2016-07-01"]
[null,null,null,null,null,null,null,null,null,null,null,null,null,null,null,null,null,null,null,"2016-07-02"]
[null,null,null,null,null,null,null,null,null,null,null,null,null,null,null,null,null,null,null,"2016-07-03"]
[null,null,null,null,null,null,null,null,null,null,null,null,null,null,null,null,null,null,null,"2016-07-04"]
[null,null,null,null,null,null,null,null,null,null,null,null,null,null,null,null,null,null,null,"2016-07-05"]
[null,null,null,null,null,null,null,null,null,null,null,null,null,null,null,null,null,null,null,"2016-07-06"]
[null,null,null,null,null,null,null,null,null,null,null,null,null,null,null,null,null,null,null,"2016-07-07"]
[null,null,null,null,null,null,null,null,null,null,null,null,null,null,null,null,null,null,null,"2016-07-08"]
[null,null,null,null,null,null,null,null,null,null,null,null,null,null,null,null,null,null,null,"2016-07-09"]
[null,null,null,null,null,null,null,null,null,null,null,null,null,null,null,null,null,null,null,"2016-07-10"]
[null,null,null,null,null,null,null,null,null,null,null,null,null,null,null,null,null,null,null,"2016-07-11"]
[null,null,null,null,null,null,null,null,null,null,null,null,null,null,null,null,null,null,null,"2016-07-12"]
[null,null,null,null,null,null,null,null,null,null,null,null,null,null,null,null,null,null,null,"2016-07-13"]
[null,null,null,null,null,null,null,null,null,null,null,null,null,null,null,null,null,null,null,"2016-07-14"]
[null,null,null,null,null,null,null,null,null,null,null,null,null,null,null,null,null,null,null,"2016-07-15"]
[null,null,null,null,null,null,null,null,null,null,null,null,null,null,null,null,null,null,null,"2016-07-16"]
[null,null,null,null,null,null,null,null,null,null,null,null,null,null,null,null,null,null,null,"2016-07-17"]
[null,null,null,null,null,null,null,null,null,null,null,null,null,null,null,null,null,null,null,"2016-07-18"]
[null,null,null,null,null,null,null,null,null,null,null,null,null,null,null,null,null,null,null,"2016-07-19"]
[null,null,null,null,null,null,null,null,null,null,null,null,null,null,null,null,null,null,null,"2016-07-20"]
[null,null,null,null,null,null,null,null,null,null,null,null,null,null,null,null,null,null,null,"2016-07-21"]
[null,null,null,null,null,null,null,null,null,null,null,null,null,null,null,null,null,null,null,"2016-07-22"]
[null,null,null,null,null,null,null,null,null,null,null,null,null,null,null,null,null,null,null,"2016-07-23"]
[null,null,null,null,null,null,null,null,null,null,null,null,null,null,null,null,null,null,null,"2016-07-24"]
[null,null,null,null,null,null,null,null,null,null,null,null,null,null,null,null,null,null,null,"2016-07-25"]
[null,null,null,null,null,null,null,null,null,null,null,null,null,null,null,null,null,null,null,"2016-07-26"]
[null,null,null,null,null,null,null,null,null,null,null,null,null,null,null,null,null,null,null,"2016-07-27"]
[null,null,null,null,null,null,null,null,null,null,null,null,null,null,null,null,null,null,null,"2016-07-28"]
[null,null,null,null,null,null,null,null,null,null,null,null,null,null,null,null,null,null,null,"2016-07-29"]
[null,null,null,null,null,null,null,null,null,null,null,null,null,null,null,null,null,null,null,"2016-07-30"]
[null,null,null,null,null,null,null,null,null,null,null,null,null,null,null,null,null,null,null,"2016-07-31"]
[null,null,null,null,null,null,null,null,null,null,null,null,null,null,null,null,null,null,null,"2016-08-01"]
[null,null,null,null,null,null,null,null,null,null,null,null,null,null,null,null,null,null,null,"2016-08-02"]
[null,null,null,null,null,null,null,null,null,null,null,null,null,null,null,null,null,null,null,"2016-08-03"]
[null,null,null,null,null,null,null,null,null,null,null,null,null,null,null,null,null,null,null,"2016-08-04"]
[null,null,null,null,null,null,null,null,null,null,null,null,null,null,null,null,null,null,null,"2016-08-05"]
[null,null,null,null,null,null,null,null,null,null,null,null,null,null,null,null,null,null,null,"2016-08-06"]
[null,null,null,null,null,null,null,null,null,null,null,null,null,null,null,null,null,null,null,"2016-08-07"]
[null,null,null,null,null,null,null,null,null,null,null,null,null,null,null,null,null,null,null,"2016-08-08"]
[null,null,null,null,null,null,null,null,null,null,null,null,null,null,null,null,null,null,null,"2016-08-09"]
[null,null,null,null,null,null,null,null,null,null,null,null,null,null,null,null,null,null,null,"2016-08-10"]
[null,null,null,null,null,null,null,null,null,null,null,null,null,null,null,null,null,null,null,"2016-08-11"]
[null,null,null,null,null,null,null,null,null,null,null,null,null,null,null,null,null,null,null,"2016-08-12"]
[null,null,null,null,null,null,null,null,null,null,null,null,null,null,null,null,null,null,null,"2016-08-13"]
[null,null,null,null,null,null,null,null,null,null,null,null,null,null,null,null,null,null,null,"2016-08-14"]
[null,null,null,null,null,null,null,null,null,null,null,null,null,null,null,null,null,null,null,"2016-08-15"]
[null,null,null,null,null,null,null,null,null,null,null,null,null,null,null,null,null,null,null,"2016-08-16"]
[null,null,null,null,null,null,null,null,null,null,null,null,null,null,null,null,null,null,null,"2016-08-17"]
[null,null,null,null,null,null,null,null,null,null,null,null,null,null,null,null,null,null,null,"2016-08-18"]
[null,null,null,null,null,null,null,null,null,null,null,null,null,null,null,null,null,null,null,"2016-08-19"]
[null,null,null,null,null,null,null,null,null,null,null,null,null,null,null,null,null,null,null,"2016-08-20"]
[null,null,null,null,null,null,null,null,null,null,null,null,null,null,null,null,null,null,null,"2016-08-21"]
[null,null,null,null,null,null,null,null,null,null,null,null,null,null,null,null,null,null,null,"2016-08-22"]
[null,null,null,null,null,null,null,null,null,null,null,null,null,null,null,null,null,null,null,"2016-08-23"]
[null,null,null,null,null,null,null,null,null,null,null,null,null,null,null,null,null,null,null,"2016-08-24"]
[null,null,null,null,null,null,null,null,null,null,null,null,null,null,null,null,null,null,null,"2016-08-25"]
[null,null,null,null,null,null,null,null,null,null,null,null,null,null,null,null,null,null,null,"2016-08-26"]
[null,null,null,null,null,null,null,null,null,null,null,null,null,null,null,null,null,null,null,"2016-08-27"]
[null,null,null,null,null,null,null,null,null,null,null,null,null,null,null,null,null,null,null,"2016-08-28"]
[null,null,null,null,null,null,null,null,null,null,null,null,null,null,null,null,null,null,null,"2016-08-29"]
[null,null,null,null,null,null,null,null,null,null,null,null,null,null,null,null,null,null,null,"2016-08-30"]
[null,null,null,null,null,null,null,null,null,null,null,null,null,null,null,null,null,null,null,"2016-08-31"]
[null,null,null,null,null,null,null,null,null,null,null,null,null,null,null,null,null,null,null,"2016-09-01"]
[null,null,null,null,null,null,null,null,null,null,null,null,null,null,null,null,null,null,null,"2016-09-02"]
[null,null,null,null,null,null,null,null,null,null,null,null,null,null,null,null,null,null,null,"2016-09-03"]
[null,null,null,null,null,null,null,null,null,null,null,null,null,null,null,null,null,null,null,"2016-09-04"]
[null,null,null,null,null,null,null,null,null,null,null,null,null,null,null,null,null,null,null,"2016-09-05"]
[null,null,null,null,null,null,null,null,null,null,null,null,null,null,null,null,null,null,null,"2016-09-06"]
[null,null,null,null,null,null,null,null,null,null,null,null,null,null,null,null,null,null,null,"2016-09-07"]
[null,null,null,null,null,null,null,null,null,null,null,null,null,null,null,null,null,null,null,"2016-09-08"]
[null,null,null,null,null,null,null,null,null,null,null,null,null,null,null,null,null,null,null,"2016-09-09"]
[null,null,null,null,null,null,null,null,null,null,null,null,null,null,null,null,null,null,null,"2016-09-10"]
[null,null,null,null,null,null,null,null,null,null,null,null,null,null,null,null,null,null,null,"2016-09-11"]
[null,null,null,null,null,null,null,null,null,null,null,null,null,null,null,null,null,null,null,"2016-09-12"]
[null,null,null,null,null,null,null,null,null,null,null,null,null,null,null,null,null,null,null,"2016-09-13"]
[null,null,null,null,null,null,null,null,null,null,null,null,null,null,null,null,null,null,null,"2016-09-14"]
[null,null,null,null,null,null,null,null,null,null,null,null,null,null,null,null,null,null,null,"2016-09-15"]
[null,null,null,null,null,null,null,null,null,null,null,null,null,null,null,null,null,null,null,"2016-09-16"]
[null,null,null,null,null,null,null,null,null,null,null,null,null,null,null,null,null,null,null,"2016-09-17"]
[null,null,null,null,null,null,null,null,null,null,null,null,null,null,null,null,null,null,null,"2016-09-18"]
[null,null,null,null,null,null,null,null,null,null,null,null,null,null,null,null,null,null,null,"2016-09-19"]
[null,null,null,null,null,null,null,null,null,null,null,null,null,null,null,null,null,null,null,"2016-09-20"]
[null,null,null,null,null,null,null,null,null,null,null,null,null,null,null,null,null,null,null,"2016-09-21"]
[null,null,null,null,null,null,null,null,null,null,null,null,null,null,null,null,null,null,null,"2016-09-22"]
[null,null,null,null,null,null,null,null,null,null,null,null,null,null,null,null,null,null,null,"2016-09-23"]
[null,null,null,null,null,null,null,null,null,null,null,null,null,null,null,null,null,null,null,"2016-09-24"]
[null,null,null,null,null,null,null,null,null,null,null,null,null,null,null,null,null,null,null,"2016-09-25"]
[null,null,null,null,null,null,null,null,null,null,null,null,null,null,null,null,null,null,null,"2016-09-26"]
[null,null,null,null,null,null,null,null,null,null,null,null,null,null,null,null,null,null,null,"2016-09-27"]
[null,null,null,null,null,null,null,null,null,null,null,null,null,null,null,null,null,null,null,"2016-09-28"]
[null,null,null,null,null,null,null,null,null,null,null,null,null,null,null,null,null,null,null,"2016-09-29"]
[null,null,null,null,null,null,null,null,null,null,null,null,null,null,null,null,null,null,null,"2016-09-30"]
[null,null,null,null,null,null,null,null,null,null,null,null,null,null,null,null,null,null,null,"2016-10-01"]
[null,null,null,null,null,null,null,null,null,null,null,null,null,null,null,null,null,null,null,"2016-10-02"]
[null,null,null,null,null,null,null,null,null,null,null,null,null,null,null,null,null,null,null,"2016-10-03"]
[null,null,null,null,null,null,null,null,null,null,null,null,null,null,null,null,null,null,null,"2016-10-04"]
[null,null,null,null,null,null,null,null,null,null,null,null,null,null,null,null,null,null,null,"2016-10-05"]
[null,null,null,null,null,null,null,null,null,null,null,null,null,null,null,null,null,null,null,"2016-10-06"]
[null,null,null,null,null,null,null,null,null,null,null,null,null,null,null,null,null,null,null,"2016-10-07"]
[null,null,null,null,null,null,null,null,null,null,null,null,null,null,null,null,null,null,null,"2016-10-08"]
[null,null,null,null,null,null,null,null,null,null,null,null,null,null,null,null,null,null,null,"2016-10-09"]
[null,null,null,null,null,null,null,null,null,null,null,null,null,null,null,null,null,null,null,"2016-10-10"]
[null,null,null,null,null,null,null,null,null,null,null,null,null,null,null,null,null,null,null,"2016-10-11"]
[null,null,null,null,null,null,null,null,null,null,null,null,null,null,null,null,null,null,null,"2016-10-12"]
[null,null,null,null,null,null,null,null,null,null,null,null,null,null,null,null,null,null,null,"2016-10-13"]
[null,null,null,null,null,null,null,null,null,null,null,null,null,null,null,null,null,null,null,"2016-10-14"]
[null,null,null,null,null,null,null,null,null,null,null,null,null,null,null,null,null,null,null,"2016-10-15"]
[null,null,null,null,null,null,null,null,null,null,null,null,null,null,null,null,null,null,null,"2016-10-16"]
[null,null,null,null,null,null,null,null,null,null,null,null,null,null,null,null,null,null,null,"2016-10-17"]
[null,null,null,null,null,null,null,null,null,null,null,null,null,null,null,null,null,null,null,"2016-10-18"]
[null,null,null,null,null,null,null,null,null,null,null,null,null,null,null,null,null,null,null,"2016-10-19"]
[null,null,null,null,null,null,null,null,null,null,null,null,null,null,null,null,null,null,null,"2016-10-20"]
[null,null,null,null,null,null,null,null,null,null,null,null,null,null,null,null,null,null,null,"2016-10-21"]
[null,null,null,null,null,null,null,null,null,null,null,null,null,null,null,null,null,null,null,"2016-10-22"]
[null,null,null,null,null,null,null,null,null,null,null,null,null,null,null,null,null,null,null,"2016-10-23"]
[null,null,null,null,null,null,null,null,null,null,null,null,null,null,null,null,null,null,null,"2016-10-24"]
[null,null,null,null,null,null,null,null,null,null,null,null,null,null,null,null,null,null,null,"2016-10-25"]
[null,null,null,null,null,null,null,null,null,null,null,null,null,null,null,null,null,null,null,"2016-10-26"]
[null,null,null,null,null,null,null,null,null,null,null,null,null,null,null,null,null,null,null,"2016-10-27"]
[null,null,null,null,null,null,null,null,null,null,null,null,null,null,null,null,null,null,null,"2016-10-28"]
[null,null,null,null,null,null,null,null,null,null,null,null,null,null,null,null,null,null,null,"2016-10-29"]
[null,null,null,null,null,null,null,null,null,null,null,null,null,null,null,null,null,null,null,"2016-10-30"]
[null,null,null,null,null,null,null,null,null,null,null,null,null,null,null,null,null,null,null,"2016-10-31"]
[null,null,null,null,null,null,null,null,null,null,null,null,null,null,null,null,null,null,null,"2016-11-01"]
[null,null,null,null,null,null,null,null,null,null,null,null,null,null,null,null,null,null,null,"2016-11-02"]
[null,null,null,null,null,null,null,null,null,null,null,null,null,null,null,null,null,null,null,"2016-11-03"]
[null,null,null,null,null,null,null,null,null,null,null,null,null,null,null,null,null,null,null,"2016-11-04"]
[null,null,null,null,null,null,null,null,null,null,null,null,null,null,null,null,null,null,null,"2016-11-05"]
[null,null,null,null,null,null,null,null,null,null,null,null,null,null,null,null,null,null,null,"2016-11-06"]
[null,null,null,null,null,null,null,null,null,null,null,null,null,null,null,null,null,null,null,"2016-11-07"]
[null,null,null,null,null,null,null,null,null,null,null,null,null,null,null,null,null,null,null,"2016-11-08"]
[null,null,null,null,null,null,null,null,null,null,null,null,null,null,null,null,null,null,null,"2016-11-09"]
[null,null,null,null,null,null,null,null,null,null,null,null,null,null,null,null,null,null,null,"2016-11-10"]
[null,null,null,null,null,null,null,null,null,null,null,null,null,null,null,null,null,null,null,"2016-11-11"]
[null,null,null,null,null,null,null,null,null,null,null,null,null,null,null,null,null,null,null,"2016-11-12"]
[null,null,null,null,null,null,null,null,null,null,null,null,null,null,null,null,null,null,null,"2016-11-13"]
[null,null,null,null,null,null,null,null,null,null,null,null,null,null,null,null,null,null,null,"2016-11-14"]
[null,null,null,null,null,null,null,null,null,null,null,null,null,null,null,null,null,null,null,"2016-11-15"]
[null,null,null,null,null,null,null,null,null,null,null,null,null,null,null,null,null,null,null,"2016-11-16"]
[null,null,null,null,null,null,null,null,null,null,null,null,null,null,null,null,null,null,null,"2016-11-17"]
[null,null,null,null,null,null,null,null,null,null,null,null,null,null,null,null,null,null,null,"2016-11-18"]
[null,null,null,null,null,null,null,null,null,null,null,null,null,null,null,null,null,null,null,"2016-11-19"]
[null,null,null,null,null,null,null,null,null,null,null,null,null,null,null,null,null,null,null,"2016-11-20"]
[null,null,null,null,null,null,null,null,null,null,null,null,null,null,null,null,null,null,null,"2016-11-21"]
[null,null,null,null,null,null,null,null,null,null,null,null,null,null,null,null,null,null,null,"2016-11-22"]
[null,null,null,null,null,null,null,null,null,null,null,null,null,null,null,null,null,null,null,"2016-11-23"]
[null,null,null,null,null,null,null,null,null,null,null,null,null,null,null,null,null,null,null,"2016-11-24"]
[null,null,null,null,null,null,null,null,null,null,null,null,null,null,null,null,null,null,null,"2016-11-25"]
[null,null,null,null,null,null,null,null,null,null,null,null,null,null,null,null,null,null,null,"2016-11-26"]
[null,null,null,null,null,null,null,null,null,null,null,null,null,null,null,null,null,null,null,"2016-11-27"]
[null,null,null,null,null,null,null,null,null,null,null,null,null,null,null,null,null,null,null,"2016-11-28"]
[null,null,null,null,null,null,null,null,null,null,null,null,null,null,null,null,null,null,null,"2016-11-29"]
[null,null,null,null,null,null,null,null,null,null,null,null,null,null,null,null,null,null,null,"2016-11-30"]
[null,null,null,null,null,null,null,null,null,null,null,null,null,null,null,null,null,null,null,"2016-12-01"]
[null,null,null,null,null,null,null,null,null,null,null,null,null,null,null,null,null,null,null,"2016-12-02"]
[null,null,null,null,null,null,null,null,null,null,null,null,null,null,null,null,null,null,null,"2016-12-03"]
[null,null,null,null,null,null,null,null,null,null,null,null,null,null,null,null,null,null,null,"2016-12-04"]
[null,null,null,null,null,null,null,null,null,null,null,null,null,null,null,null,null,null,null,"2016-12-05"]
[null,null,null,null,null,null,null,null,null,null,null,null,null,null,null,null,null,null,null,"2016-12-06"]
[null,null,null,null,null,null,null,null,null,null,null,null,null,null,null,null,null,null,null,"2016-12-07"]
[null,null,null,null,null,null,null,null,null,null,null,null,null,null,null,null,null,null,null,"2016-12-08"]
[null,null,null,null,null,null,null,null,null,null,null,null,null,null,null,null,null,null,null,"2016-12-09"]
[null,null,null,null,null,null,null,null,null,null,null,null,null,null,null,null,null,null,null,"2016-12-10"]
[null,null,null,null,null,null,null,null,null,null,null,null,null,null,null,null,null,null,null,"2016-12-11"]
[null,null,null,null,null,null,null,null,null,null,null,null,null,null,null,null,null,null,null,"2016-12-12"]
[null,null,null,null,null,null,null,null,null,null,null,null,null,null,null,null,null,null,null,"2016-12-13"]
[null,null,null,null,null,null,null,null,null,null,null,null,null,null,null,null,null,null,null,"2016-12-14"]
[null,null,null,null,null,null,null,null,null,null,null,null,null,null,null,null,null,null,null,"2016-12-15"]
[null,null,null,null,null,null,null,null,null,null,null,null,null,null,null,null,null,null,null,"2016-12-16"]
[null,null,null,null,null,null,null,null,null,null,null,null,null,null,null,null,null,null,null,"2016-12-17"]
[null,null,null,null,null,null,null,null,null,null,null,null,null,null,null,null,null,null,null,"2016-12-18"]
[null,null,null,null,null,null,null,null,null,null,null,null,null,null,null,null,null,null,null,"2016-12-19"]
[null,null,null,null,null,null,null,null,null,null,null,null,null,null,null,null,null,null,null,"2016-12-20"]
[null,null,null,null,null,null,null,null,null,null,null,null,null,null,null,null,null,null,null,"2016-12-21"]
[null,null,null,null,null,null,null,null,null,null,null,null,null,null,null,null,null,null,null,"2016-12-22"]
[null,null,null,null,null,null,null,null,null,null,null,null,null,null,null,null,null,null,null,"2016-12-23"]
[null,null,null,null,null,null,null,null,null,null,null,null,null,null,null,null,null,null,null,"2016-12-24"]
[null,null,null,null,null,null,null,null,null,null,null,null,null,null,null,null,null,null,null,"2016-12-25"]
[null,null,null,null,null,null,null,null,null,null,null,null,null,null,null,null,null,null,null,"2016-12-26"]
[null,null,null,null,null,null,null,null,null,null,null,null,null,null,null,null,null,null,null,"2016-12-27"]
[null,null,null,null,null,null,null,null,null,null,null,null,null,null,null,null,null,null,null,"2016-12-28"]
[null,null,null,null,null,null,null,null,null,null,null,null,null,null,null,null,null,null,null,"2016-12-29"]
[null,null,null,null,null,null,null,null,null,null,null,null,null,null,null,null,null,null,null,"2016-12-30"]
[null,null,null,null,null,null,null,null,null,null,null,null,null,null,null,null,null,null,null,"2016-12-31"]
[null,null,null,null,null,null,null,null,null,null,null,null,null,null,null,null,null,null,null,"2017-01-01"]
[null,null,null,null,null,null,null,null,null,null,null,null,null,null,null,null,null,null,null,"2017-01-02"]
[null,null,null,null,null,null,null,null,null,null,null,null,null,null,null,null,null,null,null,"2017-01-03"]
[null,null,null,null,null,null,null,null,null,null,null,null,null,null,null,null,null,null,null,"2017-01-04"]
[null,null,null,null,null,null,null,null,null,null,null,null,null,null,null,null,null,null,null,"2017-01-05"]
[null,null,null,null,null,null,null,null,null,null,null,null,null,null,null,null,null,null,null,"2017-01-06"]
[null,null,null,null,null,null,null,null,null,null,null,null,null,null,null,null,null,null,null,"2017-01-07"]
[null,null,null,null,null,null,null,null,null,null,null,null,null,null,null,null,null,null,null,"2017-01-08"]
[null,null,null,null,null,null,null,null,null,null,null,null,null,null,null,null,null,null,null,"2017-01-09"]
[null,null,null,null,null,null,null,null,null,null,null,null,null,null,null,null,null,null,null,"2017-01-10"]
[null,null,null,null,null,null,null,null,null,null,null,null,null,null,null,null,null,null,null,"2017-01-11"]
[null,null,null,null,null,null,null,null,null,null,null,null,null,null,null,null,null,null,null,"2017-01-12"]
[null,null,null,null,null,null,null,null,null,null,null,null,null,null,null,null,null,null,null,"2017-01-13"]
[null,null,null,null,null,null,null,null,null,null,null,null,null,null,null,null,null,null,null,"2017-01-14"]
[null,null,null,null,null,null,null,null,null,null,null,null,null,null,null,null,null,null,null,"2017-01-15"]
[null,null,null,null,null,null,null,null,null,null,null,null,null,null,null,null,null,null,null,"2017-01-16"]
[null,null,null,null,null,null,null,null,null,null,null,null,null,null,null,null,null,null,null,"2017-01-17"]
[null,null,null,null,null,null,null,null,null,null,null,null,null,null,null,null,null,null,null,"2017-01-18"]
[null,null,null,null,null,null,null,null,null,null,null,null,null,null,null,null,null,null,null,"2017-01-19"]
[null,null,null,null,null,null,null,null,null,null,null,null,null,null,null,null,null,null,null,"2017-01-20"]
[null,null,null,null,null,null,null,null,null,null,null,null,null,null,null,null,null,null,null,"2017-01-21"]
[null,null,null,null,null,null,null,null,null,null,null,null,null,null,null,null,null,null,null,"2017-01-22"]
[null,null,null,null,null,null,null,null,null,null,null,null,null,null,null,null,null,null,null,"2017-01-23"]
[null,null,null,null,null,null,null,null,null,null,null,null,null,null,null,null,null,null,null,"2017-01-24"]
[null,null,null,null,null,null,null,null,null,null,null,null,null,null,null,null,null,null,null,"2017-01-25"]
[null,null,null,null,null,null,null,null,null,null,null,null,null,null,null,null,null,null,null,"2017-01-26"]
[null,null,null,null,null,null,null,null,null,null,null,null,null,null,null,null,null,null,null,"2017-01-27"]
[null,null,null,null,null,null,null,null,null,null,null,null,null,null,null,null,null,null,null,"2017-01-28"]
[null,null,null,null,null,null,null,null,null,null,null,null,null,null,null,null,null,null,null,"2017-01-29"]
[null,null,null,null,null,null,null,null,null,null,null,null,null,null,null,null,null,null,null,"2017-01-30"]
[null,null,null,null,null,null,null,null,null,null,null,null,null,null,null,null,null,null,null,"2017-01-31"]
[null,null,null,null,null,null,null,null,null,null,null,null,null,null,null,null,null,null,null,"2017-02-01"]
[null,null,null,null,null,null,null,null,null,null,null,null,null,null,null,null,null,null,null,"2017-02-02"]
[null,null,null,null,null,null,null,null,null,null,null,null,null,null,null,null,null,null,null,"2017-02-03"]
[null,null,null,null,null,null,null,null,null,null,null,null,null,null,null,null,null,null,null,"2017-02-04"]
[null,null,null,null,null,null,null,null,null,null,null,null,null,null,null,null,null,null,null,"2017-02-05"]
[null,null,null,null,null,null,null,null,null,null,null,null,null,null,null,null,null,null,null,"2017-02-06"]
[null,null,null,null,null,null,null,null,null,null,null,null,null,null,null,null,null,null,null,"2017-02-07"]
[null,null,null,null,null,null,null,null,null,null,null,null,null,null,null,null,null,null,null,"2017-02-08"]
[null,null,null,null,null,null,null,null,null,null,null,null,null,null,null,null,null,null,null,"2017-02-09"]
[null,null,null,null,null,null,null,null,null,null,null,null,null,null,null,null,null,null,null,"2017-02-10"]
[null,null,null,null,null,null,null,null,null,null,null,null,null,null,null,null,null,null,null,"2017-02-11"]
[null,null,null,null,null,null,null,null,null,null,null,null,null,null,null,null,null,null,null,"2017-02-12"]
[null,null,null,null,null,null,null,null,null,null,null,null,null,null,null,null,null,null,null,"2017-02-13"]
[null,null,null,null,null,null,null,null,null,null,null,null,null,null,null,null,null,null,null,"2017-02-14"]
[null,null,null,null,null,null,null,null,null,null,null,null,null,null,null,null,null,null,null,"2017-02-15"]
[null,null,null,null,null,null,null,null,null,null,null,null,null,null,null,null,null,null,null,"2017-02-16"]
[null,null,null,null,null,null,null,null,null,null,null,null,null,null,null,null,null,null,null,"2017-02-17"]
[null,null,null,null,null,null,null,null,null,null,null,null,null,null,null,null,null,null,null,"2017-02-18"]
[null,null,null,null,null,null,null,null,null,null,null,null,null,null,null,null,null,null,null,"2017-02-19"]
[null,null,null,null,null,null,null,null,null,null,null,null,null,null,null,null,null,null,null,"2017-02-20"]
[null,null,null,null,null,null,null,null,null,null,null,null,null,null,null,null,null,null,null,"2017-02-21"]
[null,null,null,null,null,null,null,null,null,null,null,null,null,null,null,null,null,null,null,"2017-02-22"]
[null,null,null,null,null,null,null,null,null,null,null,null,null,null,null,null,null,null,null,"2017-02-23"]
[null,null,null,null,null,null,null,null,null,null,null,null,null,null,null,null,null,null,null,"2017-02-24"]
[null,null,null,null,null,null,null,null,null,null,null,null,null,null,null,null,null,null,null,"2017-02-25"]
[null,null,null,null,null,null,null,null,null,null,null,null,null,null,null,null,null,null,null,"2017-02-26"]
[null,null,null,null,null,null,null,null,null,null,null,null,null,null,null,null,null,null,null,"2017-02-27"]
[null,null,null,null,null,null,null,null,null,null,null,null,null,null,null,null,null,null,null,"2017-02-28"]
[null,null,null,null,null,null,null,null,null,null,null,null,null,null,null,null,null,null,null,"2017-03-01"]
[null,null,null,null,null,null,null,null,null,null,null,null,null,null,null,null,null,null,null,"2017-03-02"]
[null,null,null,null,null,null,null,null,null,null,null,null,null,null,null,null,null,null,null,"2017-03-03"]
[null,null,null,null,null,null,null,null,null,null,null,null,null,null,null,null,null,null,null,"2017-03-04"]
[null,null,null,null,null,null,null,null,null,null,null,null,null,null,null,null,null,null,null,"2017-03-05"]
[null,null,null,null,null,null,null,null,null,null,null,null,null,null,null,null,null,null,null,"2017-03-06"]
[null,null,null,null,null,null,null,null,null,null,null,null,null,null,null,null,null,null,null,"2017-03-07"]
[null,null,null,null,null,null,null,null,null,null,null,null,null,null,null,null,null,null,null,"2017-03-08"]
[null,null,null,null,null,null,null,null,null,null,null,null,null,null,null,null,null,null,null,"2017-03-09"]
[null,null,null,null,null,null,null,null,null,null,null,null,null,null,null,null,null,null,null,"2017-03-10"]
[null,null,null,null,null,null,null,null,null,null,null,null,null,null,null,null,null,null,null,"2017-03-11"]
[null,null,null,null,null,null,null,null,null,null,null,null,null,null,null,null,null,null,null,"2017-03-12"]
[null,null,null,null,null,null,null,null,null,null,null,null,null,null,null,null,null,null,null,"2017-03-13"]
[null,null,null,null,null,null,null,null,null,null,null,null,null,null,null,null,null,null,null,"2017-03-14"]
[null,null,null,null,null,null,null,null,null,null,null,null,null,null,null,null,null,null,null,"2017-03-15"]
[null,null,null,null,null,null,null,null,null,null,null,null,null,null,null,null,null,null,null,"2017-03-16"]
[null,null,null,null,null,null,null,null,null,null,null,null,null,null,null,null,null,null,null,"2017-03-17"]
[null,null,null,null,null,null,null,null,null,null,null,null,null,null,null,null,null,null,null,"2017-03-18"]
[null,null,null,null,null,null,null,null,null,null,null,null,null,null,null,null,null,null,null,"2017-03-19"]
[null,null,null,null,null,null,null,null,null,null,null,null,null,null,null,null,null,null,null,"2017-03-20"]
[null,null,null,null,null,null,null,null,null,null,null,null,null,null,null,null,null,null,null,"2017-03-21"]
[null,null,null,null,null,null,null,null,null,null,null,null,null,null,null,null,null,null,null,"2017-03-22"]
[null,null,null,null,null,null,null,null,null,null,null,null,null,null,null,null,null,null,null,"2017-03-23"]
[null,null,null,null,null,null,null,null,null,null,null,null,null,null,null,null,null,null,null,"2017-03-24"]
[null,null,null,null,null,null,null,null,null,null,null,null,null,null,null,null,null,null,null,"2017-03-25"]
[null,null,null,null,null,null,null,null,null,null,null,null,null,null,null,null,null,null,null,"2017-03-26"]
[null,null,null,null,null,null,null,null,null,null,null,null,null,null,null,null,null,null,null,"2017-03-27"]
[null,null,null,null,null,null,null,null,null,null,null,null,null,null,null,null,null,null,null,"2017-03-28"]
[null,null,null,null,null,null,null,null,null,null,null,null,null,null,null,null,null,null,null,"2017-03-29"]
[null,null,null,null,null,null,null,null,null,null,null,null,null,null,null,null,null,null,null,"2017-03-30"]
[null,null,null,null,null,null,null,null,null,null,null,null,null,null,null,null,null,null,null,"2017-03-31"]
[null,null,null,null,null,null,null,null,null,null,null,null,null,null,null,null,null,null,null,"2017-04-01"]
[null,null,null,null,null,null,null,null,null,null,null,null,null,null,null,null,null,null,null,"2017-04-02"]
[null,null,null,null,null,null,null,null,null,null,null,null,null,null,null,null,null,null,null,"2017-04-03"]
[null,null,null,null,null,null,null,null,null,null,null,null,null,null,null,null,null,null,null,"2017-04-04"]
[null,null,null,null,null,null,null,null,null,null,null,null,null,null,null,null,null,null,null,"2017-04-05"]
[null,null,null,null,null,null,null,null,null,null,null,null,null,null,null,null,null,null,null,"2017-04-06"]
[null,null,null,null,null,null,null,null,null,null,null,null,null,null,null,null,null,null,null,"2017-04-07"]
[null,null,null,null,null,null,null,null,null,null,null,null,null,null,null,null,null,null,null,"2017-04-08"]
[null,null,null,null,null,null,null,null,null,null,null,null,null,null,null,null,null,null,null,"2017-04-09"]
[null,null,null,null,null,null,null,null,null,null,null,null,null,null,null,null,null,null,null,"2017-04-10"]
[null,null,null,null,null,null,null,null,null,null,null,null,null,null,null,null,null,null,null,"2017-04-11"]
[null,null,null,null,null,null,null,null,null,null,null,null,null,null,null,null,null,null,null,"2017-04-12"]
[null,null,null,null,null,null,null,null,null,null,null,null,null,null,null,null,null,null,null,"2017-04-13"]
[null,null,null,null,null,null,null,null,null,null,null,null,null,null,null,null,null,null,null,"2017-04-14"]
[null,null,null,null,null,null,null,null,null,null,null,null,null,null,null,null,null,null,null,"2017-04-15"]
[null,null,null,null,null,null,null,null,null,null,null,null,null,null,null,null,null,null,null,"2017-04-16"]
[null,null,null,null,null,null,null,null,null,null,null,null,null,null,null,null,null,null,null,"2017-04-17"]
[null,null,null,null,null,null,null,null,null,null,null,null,null,null,null,null,null,null,null,"2017-04-18"]
[null,null,null,null,null,null,null,null,null,null,null,null,null,null,null,null,null,null,null,"2017-04-19"]
[null,null,null,null,null,null,null,null,null,null,null,null,null,null,null,null,null,null,null,"2017-04-20"]
[null,null,null,null,null,null,null,null,null,null,null,null,null,null,null,null,null,null,null,"2017-04-21"]
[null,null,null,null,null,null,null,null,null,null,null,null,null,null,null,null,null,null,null,"2017-04-22"]
[null,null,null,null,null,null,null,null,null,null,null,null,null,null,null,null,null,null,null,"2017-04-23"]
[null,null,null,null,null,null,null,null,null,null,null,null,null,null,null,null,null,null,null,"2017-04-24"]
[null,null,null,null,null,null,null,null,null,null,null,null,null,null,null,null,null,null,null,"2017-04-25"]
[null,null,null,null,null,null,null,null,null,null,null,null,null,null,null,null,null,null,null,"2017-04-26"]
[null,null,null,null,null,null,null,null,null,null,null,null,null,null,null,null,null,null,null,"2017-04-27"]
[null,null,null,null,null,null,null,null,null,null,null,null,null,null,null,null,null,null,null,"2017-04-28"]
[null,null,null,null,null,null,null,null,null,null,null,null,null,null,null,null,null,null,null,"2017-04-29"]
[null,null,null,null,null,null,null,null,null,null,null,null,null,null,null,null,null,null,null,"2017-04-30"]
[null,null,null,null,null,null,null,null,null,null,null,null,null,null,null,null,null,null,null,"2017-05-01"]
[null,null,null,null,null,null,null,null,null,null,null,null,null,null,null,null,null,null,null,"2017-05-02"]
[null,null,null,null,null,null,null,null,null,null,null,null,null,null,null,null,null,null,null,"2017-05-03"]
[null,null,null,null,null,null,null,null,null,null,null,null,null,null,null,null,null,null,null,"2017-05-04"]
[null,null,null,null,null,null,null,null,null,null,null,null,null,null,null,null,null,null,null,"2017-05-05"]
[null,null,null,null,null,null,null,null,null,null,null,null,null,null,null,null,null,null,null,"2017-05-06"]
[null,null,null,null,null,null,null,null,null,null,null,null,null,null,null,null,null,null,null,"2017-05-07"]
[null,null,null,null,null,null,null,null,null,null,null,null,null,null,null,null,null,null,null,"2017-05-08"]
[null,null,null,null,null,null,null,null,null,null,null,null,null,null,null,null,null,null,null,"2017-05-09"]
[null,null,null,null,null,null,null,null,null,null,null,null,null,null,null,null,null,null,null,"2017-05-10"]
[null,null,null,null,null,null,null,null,null,null,null,null,null,null,null,null,null,null,null,"2017-05-11"]
[null,null,null,null,null,null,null,null,null,null,null,null,null,null,null,null,null,null,null,"2017-05-12"]
[null,null,null,null,null,null,null,null,null,null,null,null,null,null,null,null,null,null,null,"2017-05-13"]
[null,null,null,null,null,null,null,null,null,null,null,null,null,null,null,null,null,null,null,"2017-05-14"]
[null,null,null,null,null,null,null,null,null,null,null,null,null,null,null,null,null,null,null,"2017-05-15"]
[null,null,null,null,null,null,null,null,null,null,null,null,null,null,null,null,null,null,null,"2017-05-16"]
[null,null,null,null,null,null,null,null,null,null,null,null,null,null,null,null,null,null,null,"2017-05-17"]
[null,null,null,null,null,null,null,null,null,null,null,null,null,null,null,null,null,null,null,"2017-05-18"]
[null,null,null,null,null,null,null,null,null,null,null,null,null,null,null,null,null,null,null,"2017-05-19"]
[null,null,null,null,null,null,null,null,null,null,null,null,null,null,null,null,null,null,null,"2017-05-20"]
[null,null,null,null,null,null,null,null,null,null,null,null,null,null,null,null,null,null,null,"2017-05-21"]
[null,null,null,null,null,null,null,null,null,null,null,null,null,null,null,null,null,null,null,"2017-05-22"]
[null,null,null,null,null,null,null,null,null,null,null,null,null,null,null,null,null,null,null,"2017-05-23"]
[null,null,null,null,null,null,null,null,null,null,null,null,null,null,null,null,null,null,null,"2017-05-24"]
[null,null,null,null,null,null,null,null,null,null,null,null,null,null,null,null,null,null,null,"2017-05-25"]
[null,null,null,null,null,null,null,null,null,null,null,null,null,null,null,null,null,null,null,"2017-05-26"]
[null,null,null,null,null,null,null,null,null,null,null,null,null,null,null,null,null,null,null,"2017-05-27"]
[null,null,null,null,null,null,null,null,null,null,null,null,null,null,null,null,null,null,null,"2017-05-28"]
[null,null,null,null,null,null,null,null,null,null,null,null,null,null,null,null,null,null,null,"2017-05-29"]
[null,null,null,null,null,null,null,null,null,null,null,null,null,null,null,null,null,null,null,"2017-05-30"]
[null,null,null,null,null,null,null,null,null,null,null,null,null,null,null,null,null,null,null,"2017-05-31"]
[null,null,null,null,null,null,null,null,null,null,null,null,null,null,null,null,null,null,null,"2017-06-01"]
[null,null,null,null,null,null,null,null,null,null,null,null,null,null,null,null,null,null,null,"2017-06-02"]
[null,null,null,null,null,null,null,null,null,null,null,null,null,null,null,null,null,null,null,"2017-06-03"]
[null,null,null,null,null,null,null,null,null,null,null,null,null,null,null,null,null,null,null,"2017-06-04"]
[null,null,null,null,null,null,null,null,null,null,null,null,null,null,null,null,null,null,null,"2017-06-05"]
[null,null,null,null,null,null,null,null,null,null,null,null,null,null,null,null,null,null,null,"2017-06-06"]
[null,null,null,null,null,null,null,null,null,null,null,null,null,null,null,null,null,null,null,"2017-06-07"]
[null,null,null,null,null,null,null,null,null,null,null,null,null,null,null,null,null,null,null,"2017-06-08"]
[null,null,null,null,null,null,null,null,null,null,null,null,null,null,null,null,null,null,null,"2017-06-09"]
[null,null,null,null,null,null,null,null,null,null,null,null,null,null,null,null,null,null,null,"2017-06-10"]
[null,null,null,null,null,null,null,null,null,null,null,null,null,null,null,null,null,null,null,"2017-06-11"]
[null,null,null,null,null,null,null,null,null,null,null,null,null,null,null,null,null,null,null,"2017-06-12"]
[null,null,null,null,null,null,null,null,null,null,null,null,null,null,null,null,null,null,null,"2017-06-13"]
[null,null,null,null,null,null,null,null,null,null,null,null,null,null,null,null,null,null,null,"2017-06-14"]
[null,null,null,null,null,null,null,null,null,null,null,null,null,null,null,null,null,null,null,"2017-06-15"]
[null,null,null,null,null,null,null,null,null,null,null,null,null,null,null,null,null,null,null,"2017-06-16"]
[null,null,null,null,null,null,null,null,null,null,null,null,null,null,null,null,null,null,null,"2017-06-17"]
[null,null,null,null,null,null,null,null,null,null,null,null,null,null,null,null,null,null,null,"2017-06-18"]
[null,null,null,null,null,null,null,null,null,null,null,null,null,null,null,null,null,null,null,"2017-06-19"]
[null,null,null,null,null,null,null,null,null,null,null,null,null,null,null,null,null,null,null,"2017-06-20"]
[null,null,null,null,null,null,null,null,null,null,null,null,null,null,null,null,null,null,null,"2017-06-21"]
[null,null,null,null,null,null,null,null,null,null,null,null,null,null,null,null,null,null,null,"2017-06-22"]
[null,null,null,null,null,null,null,null,null,null,null,null,null,null,null,null,null,null,null,"2017-06-23"]
[null,null,null,null,null,null,null,null,null,null,null,null,null,null,null,null,null,null,null,"2017-06-24"]
[null,null,null,null,null,null,null,null,null,null,null,null,null,null,null,null,null,null,null,"2017-06-25"]
[null,null,null,null,null,null,null,null,null,null,null,null,null,null,null,null,null,null,null,"2017-06-26"]
[null,null,null,null,null,null,null,null,null,null,null,null,null,null,null,null,null,null,null,"2017-06-27"]
[null,null,null,null,null,null,null,null,null,null,null,null,null,null,null,null,null,null,null,"2017-06-28"]
[null,null,null,null,null,null,null,null,null,null,null,null,null,null,null,null,null,null,null,"2017-06-29"]
[null,null,null,null,null,null,null,null,null,null,null,null,null,null,null,null,null,null,null,"2017-06-30"]
[null,null,null,null,null,null,null,null,null,null,null,null,null,null,null,null,null,null,null,"2017-07-01"]
[null,null,null,null,null,null,null,null,null,null,null,null,null,null,null,null,null,null,null,"2017-07-02"]
[null,null,null,null,null,null,null,null,null,null,null,null,null,null,null,null,null,null,null,"2017-07-03"]
[null,null,null,null,null,null,null,null,null,null,null,null,null,null,null,null,null,null,null,"2017-07-04"]
[null,null,null,null,null,null,null,null,null,null,null,null,null,null,null,null,null,null,null,"2017-07-05"]
[null,null,null,null,null,null,null,null,null,null,null,null,null,null,null,null,null,null,null,"2017-07-06"]
[null,null,null,null,null,null,null,null,null,null,null,null,null,null,null,null,null,null,null,"2017-07-07"]
[null,null,null,null,null,null,null,null,null,null,null,null,null,null,null,null,null,null,null,"2017-07-08"]
[null,null,null,null,null,null,null,null,null,null,null,null,null,null,null,null,null,null,null,"2017-07-09"]
[null,null,null,null,null,null,null,null,null,null,null,null,null,null,null,null,null,null,null,"2017-07-10"]
[null,null,null,null,null,null,null,null,null,null,null,null,null,null,null,null,null,null,null,"2017-07-11"]
[null,null,null,null,null,null,null,null,null,null,null,null,null,null,null,null,null,null,null,"2017-07-12"]
[null,null,null,null,null,null,null,null,null,null,null,null,null,null,null,null,null,null,null,"2017-07-13"]
[null,null,null,null,null,null,null,null,null,null,null,null,null,null,null,null,null,null,null,"2017-07-14"]
[null,null,null,null,null,null,null,null,null,null,null,null,null,null,null,null,null,null,null,"2017-07-15"]
[null,null,null,null,null,null,null,null,null,null,null,null,null,null,null,null,null,null,null,"2017-07-16"]
[null,null,null,null,null,null,null,null,null,null,null,null,null,null,null,null,null,null,null,"2017-07-17"]
[null,null,null,null,null,null,null,null,null,null,null,null,null,null,null,null,null,null,null,"2017-07-18"]
[null,null,null,null,null,null,null,null,null,null,null,null,null,null,null,null,null,null,null,"2017-07-19"]
[null,null,null,null,null,null,null,null,null,null,null,null,null,null,null,null,null,null,null,"2017-07-20"]
[null,null,null,null,null,null,null,null,null,null,null,null,null,null,null,null,null,null,null,"2017-07-21"]
[null,null,null,null,null,null,null,null,null,null,null,null,null,null,null,null,null,null,null,"2017-07-22"]
[null,null,null,null,null,null,null,null,null,null,null,null,null,null,null,null,null,null,null,"2017-07-23"]
[null,null,null,null,null,null,null,null,null,null,null,null,null,null,null,null,null,null,null,"2017-07-24"]
[null,null,null,null,null,null,null,null,null,null,null,null,null,null,null,null,null,null,null,"2017-07-25"]
[null,null,null,null,null,null,null,null,null,null,null,null,null,null,null,null,null,null,null,"2017-07-26"]
[null,null,null,null,null,null,null,null,null,null,null,null,null,null,null,null,null,null,null,"2017-07-27"]
[null,null,null,null,null,null,null,null,null,null,null,null,null,null,null,null,null,null,null,"2017-07-28"]
[null,null,null,null,null,null,null,null,null,null,null,null,null,null,null,null,null,null,null,"2017-07-29"]
[null,null,null,null,null,null,null,null,null,null,null,null,null,null,null,null,null,null,null,"2017-07-30"]
[null,null,null,null,null,null,null,null,null,null,null,null,null,null,null,null,null,null,null,"2017-07-31"]
[null,null,null,null,null,null,null,null,null,null,null,null,null,null,null,null,null,null,null,"2017-08-01"]
[null,null,null,null,null,null,null,null,null,null,null,null,null,null,null,null,null,null,null,"2017-08-02"]
[null,null,null,null,null,null,null,null,null,null,null,null,null,null,null,null,null,null,null,"2017-08-03"]
[null,null,null,null,null,null,null,null,null,null,null,null,null,null,null,null,null,null,null,"2017-08-04"]
[null,null,null,null,null,null,null,null,null,null,null,null,null,null,null,null,null,null,null,"2017-08-05"]
[null,null,null,null,null,null,null,null,null,null,null,null,null,null,null,null,null,null,null,"2017-08-06"]
[null,null,null,null,null,null,null,null,null,null,null,null,null,null,null,null,null,null,null,"2017-08-07"]
[null,null,null,null,null,null,null,null,null,null,null,null,null,null,null,null,null,null,null,"2017-08-08"]
[null,null,null,null,null,null,null,null,null,null,null,null,null,null,null,null,null,null,null,"2017-08-09"]
[null,null,null,null,null,null,null,null,null,null,null,null,null,null,null,null,null,null,null,"2017-08-10"]
[null,null,null,null,null,null,null,null,null,null,null,null,null,null,null,null,null,null,null,"2017-08-11"]
[null,null,null,null,null,null,null,null,null,null,null,null,null,null,null,null,null,null,null,"2017-08-12"]
[null,null,null,null,null,null,null,null,null,null,null,null,null,null,null,null,null,null,null,"2017-08-13"]
[null,null,null,null,null,null,null,null,null,null,null,null,null,null,null,null,null,null,null,"2017-08-14"]
[null,null,null,null,null,null,null,null,null,null,null,null,null,null,null,null,null,null,null,"2017-08-15"]
[null,null,null,null,null,null,null,null,null,null,null,null,null,null,null,null,null,null,null,"2017-08-16"]
[null,null,null,null,null,null,null,null,null,null,null,null,null,null,null,null,null,null,null,"2017-08-17"]
[null,null,null,null,null,null,null,null,null,null,null,null,null,null,null,null,null,null,null,"2017-08-18"]
[null,null,null,null,null,null,null,null,null,null,null,null,null,null,null,null,null,null,null,"2017-08-19"]
[null,null,null,null,null,null,null,null,null,null,null,null,null,null,null,null,null,null,null,"2017-08-20"]
[null,null,null,null,null,null,null,null,null,null,null,null,null,null,null,null,null,null,null,"2017-08-21"]
[null,null,null,null,null,null,null,null,null,null,null,null,null,null,null,null,null,null,null,"2017-08-22"]
[null,null,null,null,null,null,null,null,null,null,null,null,null,null,null,null,null,null,null,"2017-08-23"]
[null,null,null,null,null,null,null,null,null,null,null,null,null,null,null,null,null,null,null,"2017-08-24"]
[null,null,null,null,null,null,null,null,null,null,null,null,null,null,null,null,null,null,null,"2017-08-25"]
[null,null,null,null,null,null,null,null,null,null,null,null,null,null,null,null,null,null,null,"2017-08-26"]
[null,null,null,null,null,null,null,null,null,null,null,null,null,null,null,null,null,null,null,"2017-08-27"]
[null,null,null,null,null,null,null,null,null,null,null,null,null,null,null,null,null,null,null,"2017-08-28"]
[null,null,null,null,null,null,null,null,null,null,null,null,null,null,null,null,null,null,null,"2017-08-29"]
[null,null,null,null,null,null,null,null,null,null,null,null,null,null,null,null,null,null,null,"2017-08-30"]
[null,null,null,null,null,null,null,null,null,null,null,null,null,null,null,null,null,null,null,"2017-08-31"]
[null,null,null,null,null,null,null,null,null,null,null,null,null,null,null,null,null,null,null,"2017-09-01"]
[null,null,null,null,null,null,null,null,null,null,null,null,null,null,null,null,null,null,null,"2017-09-02"]
[null,null,null,null,null,null,null,null,null,null,null,null,null,null,null,null,null,null,null,"2017-09-03"]
[null,null,null,null,null,null,null,null,null,null,null,null,null,null,null,null,null,null,null,"2017-09-04"]
[null,null,null,null,null,null,null,null,null,null,null,null,null,null,null,null,null,null,null,"2017-09-05"]
[null,null,null,null,null,null,null,null,null,null,null,null,null,null,null,null,null,null,null,"2017-09-06"]
[null,null,null,null,null,null,null,null,null,null,null,null,null,null,null,null,null,null,null,"2017-09-07"]
[null,null,null,null,null,null,null,null,null,null,null,null,null,null,null,null,null,null,null,"2017-09-08"]
[null,null,null,null,null,null,null,null,null,null,null,null,null,null,null,null,null,null,null,"2017-09-09"]
[null,null,null,null,null,null,null,null,null,null,null,null,null,null,null,null,null,null,null,"2017-09-10"]
[null,null,null,null,null,null,null,null,null,null,null,null,null,null,null,null,null,null,null,"2017-09-11"]
[null,null,null,null,null,null,null,null,null,null,null,null,null,null,null,null,null,null,null,"2017-09-12"]
[null,null,null,null,null,null,null,null,null,null,null,null,null,null,null,null,null,null,null,"2017-09-13"]
[null,null,null,null,null,null,null,null,null,null,null,null,null,null,null,null,null,null,null,"2017-09-14"]
[null,null,null,null,null,null,null,null,null,null,null,null,null,null,null,null,null,null,null,"2017-09-15"]
[null,null,null,null,null,null,null,null,null,null,null,null,null,null,null,null,null,null,null,"2017-09-16"]
[null,null,null,null,null,null,null,null,null,null,null,null,null,null,null,null,null,null,null,"2017-09-17"]
[null,null,null,null,null,null,null,null,null,null,null,null,null,null,null,null,null,null,null,"2017-09-18"]
[null,null,null,null,null,null,null,null,null,null,null,null,null,null,null,null,null,null,null,"2017-09-19"]
[null,null,null,null,null,null,null,null,null,null,null,null,null,null,null,null,null,null,null,"2017-09-20"]
[null,null,null,null,null,null,null,null,null,null,null,null,null,null,null,null,null,null,null,"2017-09-21"]
[null,null,null,null,null,null,null,null,null,null,null,null,null,null,null,null,null,null,null,"2017-09-22"]
[null,null,null,null,null,null,null,null,null,null,null,null,null,null,null,null,null,null,null,"2017-09-23"]
[null,null,null,null,null,null,null,null,null,null,null,null,null,null,null,null,null,null,null,"2017-09-24"]
[null,null,null,null,null,null,null,null,null,null,null,null,null,null,null,null,null,null,null,"2017-09-25"]
[null,null,null,null,null,null,null,null,null,null,null,null,null,null,null,null,null,null,null,"2017-09-26"]
[null,null,null,null,null,null,null,null,null,null,null,null,null,null,null,null,null,null,null,"2017-09-27"]
[null,null,null,null,null,null,null,null,null,null,null,null,null,null,null,null,null,null,null,"2017-09-28"]
[null,null,null,null,null,null,null,null,null,null,null,null,null,null,null,null,null,null,null,"2017-09-29"]
[null,null,null,null,null,null,null,null,null,null,null,null,null,null,null,null,null,null,null,"2017-09-30"]
[null,null,null,null,null,null,null,null,null,null,null,null,null,null,null,null,null,null,null,"2017-10-01"]
[null,null,null,null,null,null,null,null,null,null,null,null,null,null,null,null,null,null,null,"2017-10-02"]
[null,null,null,null,null,null,null,null,null,null,null,null,null,null,null,null,null,null,null,"2017-10-03"]
[null,null,null,null,null,null,null,null,null,null,null,null,null,null,null,null,null,null,null,"2017-10-04"]
[null,null,null,null,null,null,null,null,null,null,null,null,null,null,null,null,null,null,null,"2017-10-05"]
[null,null,null,null,null,null,null,null,null,null,null,null,null,null,null,null,null,null,null,"2017-10-06"]
[null,null,null,null,null,null,null,null,null,null,null,null,null,null,null,null,null,null,null,"2017-10-07"]
[null,null,null,null,null,null,null,null,null,null,null,null,null,null,null,null,null,null,null,"2017-10-08"]
[null,null,null,null,null,null,null,null,null,null,null,null,null,null,null,null,null,null,null,"2017-10-09"]
[null,null,null,null,null,null,null,null,null,null,null,null,null,null,null,null,null,null,null,"2017-10-10"]
[null,null,null,null,null,null,null,null,null,null,null,null,null,null,null,null,null,null,null,"2017-10-11"]
[null,null,null,null,null,null,null,null,null,null,null,null,null,null,null,null,null,null,null,"2017-10-12"]
[null,null,null,null,null,null,null,null,null,null,null,null,null,null,null,null,null,null,null,"2017-10-13"]
[null,null,null,null,null,null,null,null,null,null,null,null,null,null,null,null,null,null,null,"2017-10-14"]
[null,null,null,null,null,null,null,null,null,null,null,null,null,null,null,null,null,null,null,"2017-10-15"]
[null,null,null,null,null,null,null,null,null,null,null,null,null,null,null,null,null,null,null,"2017-10-16"]
[null,null,null,null,null,null,null,null,null,null,null,null,null,null,null,null,null,null,null,"2017-10-17"]
[null,null,null,null,null,null,null,null,null,null,null,null,null,null,null,null,null,null,null,"2017-10-18"]
[null,null,null,null,null,null,null,null,null,null,null,null,null,null,null,null,null,null,null,"2017-10-19"]
[null,null,null,null,null,null,null,null,null,null,null,null,null,null,null,null,null,null,null,"2017-10-20"]
[null,null,null,null,null,null,null,null,null,null,null,null,null,null,null,null,null,null,null,"2017-10-21"]
[null,null,null,null,null,null,null,null,null,null,null,null,null,null,null,null,null,null,null,"2017-10-22"]
[null,null,null,null,null,null,null,null,null,null,null,null,null,null,null,null,null,null,null,"2017-10-23"]
[null,null,null,null,null,null,null,null,null,null,null,null,null,null,null,null,null,null,null,"2017-10-24"]
[null,null,null,null,null,null,null,null,null,null,null,null,null,null,null,null,null,null,null,"2017-10-25"]
[null,null,null,null,null,null,null,null,null,null,null,null,null,null,null,null,null,null,null,"2017-10-26"]
[null,null,null,null,null,null,null,null,null,null,null,null,null,null,null,null,null,null,null,"2017-10-27"]
[null,null,null,null,null,null,null,null,null,null,null,null,null,null,null,null,null,null,null,"2017-10-28"]
[null,null,null,null,null,null,null,null,null,null,null,null,null,null,null,null,null,null,null,"2017-10-29"]
[null,null,null,null,null,null,null,null,null,null,null,null,null,null,null,null,null,null,null,"2017-10-30"]
[null,null,null,null,null,null,null,null,null,null,null,null,null,null,null,null,null,null,null,"2017-10-31"]
[null,null,null,null,null,null,null,null,null,null,null,null,null,null,null,null,null,null,null,"2017-11-01"]
[null,null,null,null,null,null,null,null,null,null,null,null,null,null,null,null,null,null,null,"2017-11-02"]
[null,null,null,null,null,null,null,null,null,null,null,null,null,null,null,null,null,null,null,"2017-11-03"]
[null,null,null,null,null,null,null,null,null,null,null,null,null,null,null,null,null,null,null,"2017-11-04"]
[null,null,null,null,null,null,null,null,null,null,null,null,null,null,null,null,null,null,null,"2017-11-05"]
[null,null,null,null,null,null,null,null,null,null,null,null,null,null,null,null,null,null,null,"2017-11-06"]
[null,null,null,null,null,null,null,null,null,null,null,null,null,null,null,null,null,null,null,"2017-11-07"]
[null,null,null,null,null,null,null,null,null,null,null,null,null,null,null,null,null,null,null,"2017-11-08"]
[null,null,null,null,null,null,null,null,null,null,null,null,null,null,null,null,null,null,null,"2017-11-09"]
[null,null,null,null,null,null,null,null,null,null,null,null,null,null,null,null,null,null,null,"2017-11-10"]
[null,null,null,null,null,null,null,null,null,null,null,null,null,null,null,null,null,null,null,"2017-11-11"]
[null,null,null,null,null,null,null,null,null,null,null,null,null,null,null,null,null,null,null,"2017-11-12"]
[null,null,null,null,null,null,null,null,null,null,null,null,null,null,null,null,null,null,null,"2017-11-13"]
[null,null,null,null,null,null,null,null,null,null,null,null,null,null,null,null,null,null,null,"2017-11-14"]
[null,null,null,null,null,null,null,null,null,null,null,null,null,null,null,null,null,null,null,"2017-11-15"]
[null,null,null,null,null,null,null,null,null,null,null,null,null,null,null,null,null,null,null,"2017-11-16"]
[null,null,null,null,null,null,null,null,null,null,null,null,null,null,null,null,null,null,null,"2017-11-17"]
[null,null,null,null,null,null,null,null,null,null,null,null,null,null,null,null,null,null,null,"2017-11-18"]
[null,null,null,null,null,null,null,null,null,null,null,null,null,null,null,null,null,null,null,"2017-11-19"]
[null,null,null,null,null,null,null,null,null,null,null,null,null,null,null,null,null,null,null,"2017-11-20"]
[null,null,null,null,null,null,null,null,null,null,null,null,null,null,null,null,null,null,null,"2017-11-21"]
[null,null,null,null,null,null,null,null,null,null,null,null,null,null,null,null,null,null,null,"2017-11-22"]
[null,null,null,null,null,null,null,null,null,null,null,null,null,null,null,null,null,null,null,"2017-11-23"]
[null,null,null,null,null,null,null,null,null,null,null,null,null,null,null,null,null,null,null,"2017-11-24"]
[null,null,null,null,null,null,null,null,null,null,null,null,null,null,null,null,null,null,null,"2017-11-25"]
[null,null,null,null,null,null,null,null,null,null,null,null,null,null,null,null,null,null,null,"2017-11-26"]
[null,null,null,null,null,null,null,null,null,null,null,null,null,null,null,null,null,null,null,"2017-11-27"]
[null,null,null,null,null,null,null,null,null,null,null,null,null,null,null,null,null,null,null,"2017-11-28"]
[null,null,null,null,null,null,null,null,null,null,null,null,null,null,null,null,null,null,null,"2017-11-29"]
[null,null,null,null,null,null,null,null,null,null,null,null,null,null,null,null,null,null,null,"2017-11-30"]
[null,null,null,null,null,null,null,null,null,null,null,null,null,null,null,null,null,null,null,"2017-12-01"]
[null,null,null,null,null,null,null,null,null,null,null,null,null,null,null,null,null,null,null,"2017-12-02"]
[null,null,null,null,null,null,null,null,null,null,null,null,null,null,null,null,null,null,null,"2017-12-03"]
[null,null,null,null,null,null,null,null,null,null,null,null,null,null,null,null,null,null,null,"2017-12-04"]
[null,null,null,null,null,null,null,null,null,null,null,null,null,null,null,null,null,null,null,"2017-12-05"]
[null,null,null,null,null,null,null,null,null,null,null,null,null,null,null,null,null,null,null,"2017-12-06"]
[null,null,null,null,null,null,null,null,null,null,null,null,null,null,null,null,null,null,null,"2017-12-07"]
[null,null,null,null,null,null,null,null,null,null,null,null,null,null,null,null,null,null,null,"2017-12-08"]
[null,null,null,null,null,null,null,null,null,null,null,null,null,null,null,null,null,null,null,"2017-12-09"]
[null,null,null,null,null,null,null,null,null,null,null,null,null,null,null,null,null,null,null,"2017-12-10"]
[null,null,null,null,null,null,null,null,null,null,null,null,null,null,null,null,null,null,null,"2017-12-11"]
[null,null,null,null,null,null,null,null,null,null,null,null,null,null,null,null,null,null,null,"2017-12-12"]
[null,null,null,null,null,null,null,null,null,null,null,null,null,null,null,null,null,null,null,"2017-12-13"]
[null,null,null,null,null,null,null,null,null,null,null,null,null,null,null,null,null,null,null,"2017-12-14"]
[null,null,null,null,null,null,null,null,null,null,null,null,null,null,null,null,null,null,null,"2017-12-15"]
[null,null,null,null,null,null,null,null,null,null,null,null,null,null,null,null,null,null,null,"2017-12-16"]
[null,null,null,null,null,null,null,null,null,null,null,null,null,null,null,null,null,null,null,"2017-12-17"]
[null,null,null,null,null,null,null,null,null,null,null,null,null,null,null,null,null,null,null,"2017-12-18"]
[null,null,null,null,null,null,null,null,null,null,null,null,null,null,null,null,null,null,null,"2017-12-19"]
[null,null,null,null,null,null,null,null,null,null,null,null,null,null,null,null,null,null,null,"2017-12-20"]
[null,null,null,null,null,null,null,null,null,null,null,null,null,null,null,null,null,null,null,"2017-12-21"]
[null,null,null,null,null,null,null,null,null,null,null,null,null,null,null,null,null,null,null,"2017-12-22"]
[null,null,null,null,null,null,null,null,null,null,null,null,null,null,null,null,null,null,null,"2017-12-23"]
[null,null,null,null,null,null,null,null,null,null,null,null,null,null,null,null,null,null,null,"2017-12-24"]
[null,null,null,null,null,null,null,null,null,null,null,null,null,null,null,null,null,null,null,"2017-12-25"]
[null,null,null,null,null,null,null,null,null,null,null,null,null,null,null,null,null,null,null,"2017-12-26"]
[null,null,null,null,null,null,null,null,null,null,null,null,null,null,null,null,null,null,null,"2017-12-27"]
[null,null,null,null,null,null,null,null,null,null,null,null,null,null,null,null,null,null,null,"2017-12-28"]
[null,null,null,null,null,null,null,null,null,null,null,null,null,null,null,null,null,null,null,"2017-12-29"]
[null,null,null,null,null,null,null,null,null,null,null,null,null,null,null,null,null,null,null,"2017-12-30"]
[null,null,null,null,null,null,null,null,null,null,null,null,null,null,null,null,null,null,null,"2017-12-31"]

{"sheet":"Nombre","index":1,"n_rows":17,"n_cols":18,"rows_kept":17,"cut":false,"hidden":false,"merged":[[3,18,4,18],[0,1,0,18],[1,1,1,18],[2,1,2,18]]}
[]
[]
[]
[null,null,null,null,null,null,null,null,null,null,null,null,null,null,null,null,null,"Arrondissment"]
[null,"Cumul","Janvier","Février","Mars","Avril","Mai","Juin","Juillet","Août","Septembre","Octobre","Novembre","Décembre","Total",null,null,1]
[null,2016,{"$f":"SUMPRODUCT((YEAR(Data_1!$O$4:$O$29)=$B6)*(MONTH(Data_1!$O$4:$O$29)=MONTH(DATEVALUE(\"1/\"&C$5&\"/\"&$B6))))+SUMPRODUCT((YEAR(Data_2!$B$2:$B$26)=$B6)*(MONTH(Data_2!$B$2:$B$26)=MONTH(DATEVALUE(\"1/\"&C$5&\"/\"&$B6))))","v":6},{"$f":"SUMPRODUCT((YEAR(Data_1!$O$4:$O$29)=$B6)*(MONTH(Data_1!$O$4:$O$29)=MONTH(DATEVALUE(\"1/\"&D$5&\"/\"&$B6))))+SUMPRODUCT((YEAR(Data_2!$B$2:$B$26)=$B6)*(MONTH(Data_2!$B$2:$B$26)=MONTH(DATEVALUE(\"1/\"&D$5&\"/\"&$B6))))","v":2},{"$f":"SUMPRODUCT((YEAR(Data_1!$O$4:$O$29)=$B6)*(MONTH(Data_1!$O$4:$O$29)=MONTH(DATEVALUE(\"1/\"&E$5&\"/\"&$B6))))+SUMPRODUCT((YEAR(Data_2!$B$2:$B$26)=$B6)*(MONTH(Data_2!$B$2:$B$26)=MONTH(DATEVALUE(\"1/\"&E$5&\"/\"&$B6))))","v":1},{"$f":"SUMPRODUCT((YEAR(Data_1!$O$4:$O$29)=$B6)*(MONTH(Data_1!$O$4:$O$29)=MONTH(DATEVALUE(\"1/\"&F$5&\"/\"&$B6))))+SUMPRODUCT((YEAR(Data_2!$B$2:$B$26)=$B6)*(MONTH(Data_2!$B$2:$B$26)=MONTH(DATEVALUE(\"1/\"&F$5&\"/\"&$B6))))","v":4},{"$f":"SUMPRODUCT((YEAR(Data_1!$O$4:$O$29)=$B6)*(MONTH(Data_1!$O$4:$O$29)=MONTH(DATEVALUE(\"1/\"&G$5&\"/\"&$B6))))+SUMPRODUCT((YEAR(Data_2!$B$2:$B$26)=$B6)*(MONTH(Data_2!$B$2:$B$26)=MONTH(DATEVALUE(\"1/\"&G$5&\"/\"&$B6))))","v":3},{"$f":"SUMPRODUCT((YEAR(Data_1!$O$4:$O$29)=$B6)*(MONTH(Data_1!$O$4:$O$29)=MONTH(DATEVALUE(\"1/\"&H$5&\"/\"&$B6))))+SUMPRODUCT((YEAR(Data_2!$B$2:$B$26)=$B6)*(MONTH(Data_2!$B$2:$B$26)=MONTH(DATEVALUE(\"1/\"&H$5&\"/\"&$B6))))","v":2},{"$f":"SUMPRODUCT((YEAR(Data_1!$O$4:$O$29)=$B6)*(MONTH(Data_1!$O$4:$O$29)=MONTH(DATEVALUE(\"1/\"&I$5&\"/\"&$B6))))+SUMPRODUCT((YEAR(Data_2!$B$2:$B$26)=$B6)*(MONTH(Data_2!$B$2:$B$26)=MONTH(DATEVALUE(\"1/\"&I$5&\"/\"&$B6))))","v":0},{"$f":"SUMPRODUCT((YEAR(Data_1!$O$4:$O$29)=$B6)*(MONTH(Data_1!$O$4:$O$29)=MONTH(DATEVALUE(\"1/\"&J$5&\"/\"&$B6))))+SUMPRODUCT((YEAR(Data_2!$B$2:$B$26)=$B6)*(MONTH(Data_2!$B$2:$B$26)=MONTH(DATEVALUE(\"1/\"&J$5&\"/\"&$B6))))","v":5},{"$f":"SUMPRODUCT((YEAR(Data_1!$O$4:$O$29)=$B6)*(MONTH(Data_1!$O$4:$O$29)=MONTH(DATEVALUE(\"1/\"&K$5&\"/\"&$B6))))+SUMPRODUCT((YEAR(Data_2!$B$2:$B$26)=$B6)*(MONTH(Data_2!$B$2:$B$26)=MONTH(DATEVALUE(\"1/\"&K$5&\"/\"&$B6))))","v":0},{"$f":"SUMPRODUCT((YEAR(Data_1!$O$4:$O$29)=$B6)*(MONTH(Data_1!$O$4:$O$29)=MONTH(DATEVALUE(\"1/\"&L$5&\"/\"&$B6))))+SUMPRODUCT((YEAR(Data_2!$B$2:$B$26)=$B6)*(MONTH(Data_2!$B$2:$B$26)=MONTH(DATEVALUE(\"1/\"&L$5&\"/\"&$B6))))","v":0},{"$f":"SUMPRODUCT((YEAR(Data_1!$O$4:$O$29)=$B6)*(MONTH(Data_1!$O$4:$O$29)=MONTH(DATEVALUE(\"1/\"&M$5&\"/\"&$B6))))+SUMPRODUCT((YEAR(Data_2!$B$2:$B$26)=$B6)*(MONTH(Data_2!$B$2:$B$26)=MONTH(DATEVALUE(\"1/\"&M$5&\"/\"&$B6))))","v":0},{"$f":"SUMPRODUCT((YEAR(Data_1!$O$4:$O$29)=$B6)*(MONTH(Data_1!$O$4:$O$29)=MONTH(DATEVALUE(\"1/\"&N$5&\"/\"&$B6))))+SUMPRODUCT((YEAR(Data_2!$B$2:$B$26)=$B6)*(MONTH(Data_2!$B$2:$B$26)=MONTH(DATEVALUE(\"1/\"&N$5&\"/\"&$B6))))","v":2},{"$f":"SUM(C6:N6)","v":25},null,null,1]
[null,2017,{"$f":"SUMPRODUCT((YEAR(Data_1!$O$4:$O$29)=$B7)*(MONTH(Data_1!$O$4:$O$29)=MONTH(DATEVALUE(\"1/\"&C$5&\"/\"&$B7))))+SUMPRODUCT((YEAR(Data_2!$B$2:$B$26)=$B7)*(MONTH(Data_2!$B$2:$B$26)=MONTH(DATEVALUE(\"1/\"&C$5&\"/\"&$B7))))","v":3},{"$f":"SUMPRODUCT((YEAR(Data_1!$O$4:$O$29)=$B7)*(MONTH(Data_1!$O$4:$O$29)=MONTH(DATEVALUE(\"1/\"&D$5&\"/\"&$B7))))+SUMPRODUCT((YEAR(Data_2!$B$2:$B$26)=$B7)*(MONTH(Data_2!$B$2:$B$26)=MONTH(DATEVALUE(\"1/\"&D$5&\"/\"&$B7))))","v":3},{"$f":"SUMPRODUCT((YEAR(Data_1!$O$4:$O$29)=$B7)*(MONTH(Data_1!$O$4:$O$29)=MONTH(DATEVALUE(\"1/\"&E$5&\"/\"&$B7))))+SUMPRODUCT((YEAR(Data_2!$B$2:$B$26)=$B7)*(MONTH(Data_2!$B$2:$B$26)=MONTH(DATEVALUE(\"1/\"&E$5&\"/\"&$B7))))","v":3},{"$f":"SUMPRODUCT((YEAR(Data_1!$O$4:$O$29)=$B7)*(MONTH(Data_1!$O$4:$O$29)=MONTH(DATEVALUE(\"1/\"&F$5&\"/\"&$B7))))+SUMPRODUCT((YEAR(Data_2!$B$2:$B$26)=$B7)*(MONTH(Data_2!$B$2:$B$26)=MONTH(DATEVALUE(\"1/\"&F$5&\"/\"&$B7))))","v":2},{"$f":"SUMPRODUCT((YEAR(Data_1!$O$4:$O$29)=$B7)*(MONTH(Data_1!$O$4:$O$29)=MONTH(DATEVALUE(\"1/\"&G$5&\"/\"&$B7))))+SUMPRODUCT((YEAR(Data_2!$B$2:$B$26)=$B7)*(MONTH(Data_2!$B$2:$B$26)=MONTH(DATEVALUE(\"1/\"&G$5&\"/\"&$B7))))","v":5},{"$f":"SUMPRODUCT((YEAR(Data_1!$O$4:$O$29)=$B7)*(MONTH(Data_1!$O$4:$O$29)=MONTH(DATEVALUE(\"1/\"&H$5&\"/\"&$B7))))+SUMPRODUCT((YEAR(Data_2!$B$2:$B$26)=$B7)*(MONTH(Data_2!$B$2:$B$26)=MONTH(DATEVALUE(\"1/\"&H$5&\"/\"&$B7))))","v":8},{"$f":"SUMPRODUCT((YEAR(Data_1!$O$4:$O$29)=$B7)*(MONTH(Data_1!$O$4:$O$29)=MONTH(DATEVALUE(\"1/\"&I$5&\"/\"&$B7))))+SUMPRODUCT((YEAR(Data_2!$B$2:$B$26)=$B7)*(MONTH(Data_2!$B$2:$B$26)=MONTH(DATEVALUE(\"1/\"&I$5&\"/\"&$B7))))","v":2},{"$f":"SUMPRODUCT((YEAR(Data_1!$O$4:$O$29)=$B7)*(MONTH(Data_1!$O$4:$O$29)=MONTH(DATEVALUE(\"1/\"&J$5&\"/\"&$B7))))+SUMPRODUCT((YEAR(Data_2!$B$2:$B$26)=$B7)*(MONTH(Data_2!$B$2:$B$26)=MONTH(DATEVALUE(\"1/\"&J$5&\"/\"&$B7))))","v":0},{"$f":"SUMPRODUCT((YEAR(Data_1!$O$4:$O$29)=$B7)*(MONTH(Data_1!$O$4:$O$29)=MONTH(DATEVALUE(\"1/\"&K$5&\"/\"&$B7))))+SUMPRODUCT((YEAR(Data_2!$B$2:$B$26)=$B7)*(MONTH(Data_2!$B$2:$B$26)=MONTH(DATEVALUE(\"1/\"&K$5&\"/\"&$B7))))","v":0},{"$f":"SUMPRODUCT((YEAR(Data_1!$O$4:$O$29)=$B7)*(MONTH(Data_1!$O$4:$O$29)=MONTH(DATEVALUE(\"1/\"&L$5&\"/\"&$B7))))+SUMPRODUCT((YEAR(Data_2!$B$2:$B$26)=$B7)*(MONTH(Data_2!$B$2:$B$26)=MONTH(DATEVALUE(\"1/\"&L$5&\"/\"&$B7))))","v":0},{"$f":"SUMPRODUCT((YEAR(Data_1!$O$4:$O$29)=$B7)*(MONTH(Data_1!$O$4:$O$29)=MONTH(DATEVALUE(\"1/\"&M$5&\"/\"&$B7))))+SUMPRODUCT((YEAR(Data_2!$B$2:$B$26)=$B7)*(MONTH(Data_2!$B$2:$B$26)=MONTH(DATEVALUE(\"1/\"&M$5&\"/\"&$B7))))","v":0},{"$f":"SUMPRODUCT((YEAR(Data_1!$O$4:$O$29)=$B7)*(MONTH(Data_1!$O$4:$O$29)=MONTH(DATEVALUE(\"1/\"&N$5&\"/\"&$B7))))+SUMPRODUCT((YEAR(Data_2!$B$2:$B$26)=$B7)*(MONTH(Data_2!$B$2:$B$26)=MONTH(DATEVALUE(\"1/\"&N$5&\"/\"&$B7))))","v":0},{"$f":"SUM(C7:N7)","v":26},null,null,2]
[null,null,null,null,null,null,null,null,null,null,null,null,null,null,null,null,null,3]
[null,null,null,null,null,null,null,null,null,null,null,null,null,null,null,null,null,4]
[null,null,null,null,null,null,null,null,null,null,null,null,null,null,null,null,null,5]
[null,null,null,null,null,null,null,null,null,null,null,null,null,null,null,null,null,6]
[null,null,null,null,null,null,null,null,null,null,null,null,null,null,null,null,null,7]
[null,null,null,null,null,null,null,null,null,null,null,null,null,null,null,null,null,8]
[null,null,null,"Là c'est un gros point d'interrogation !",null,null,null,null,null,null,null,null,null,null,null,null,null,9]
[null,null,null,"j'ai regroupé par année et mois !",null,null,null,null,null,null,null,null,null,null,null,null,null,10]
[null,null,null,null,null,null,null,null,null,null,null,null,null,null,null,null,null,11]
[null,null,null,null,null,null,null,null,null,null,null,null,null,null,null,null,null,12]

{"sheet":"Data_1","index":2,"n_rows":29,"n_cols":24,"rows_kept":29,"cut":false,"hidden":false,"merged":[]}
["Produits","Colonne1","Colonne2","Colonne3","Colonne4","Colonne5","Colonne6","Colonne7","Colonne72","Numéro voie","Complé.","Voie","Arrondissement","Colonne8","Date","Colonne13","Vendeur","I.D : Vendeur","Affectation","Colonne9","Colonne10","Colonne11","État","F22"]
[]
[null,null,null,null,null,null,null,null,null,null,"Bis/Ter","Voie","Ville"]
["Bateaux",null,null,null,null,null,null,null,null,120,null,"RUE OBERKAMPF","PARIS 11",null,"2016-01-30T23:53:24",null,"Alain",102359,"Dia",null,null,null,"Ventes"]
["Navire",null,null,null,null,null,null,null,null,1,null,"RUE DU LIBAN","PARIS 20",null,"2016-01-30T23:52:49",null,"victor",562311,"Lidl",null,null,null,"Vente"]
["Camion",null,null,null,null,null,null,null,null,1,null,"QUAI SAINT-BERNARD","PARIS 05",null,"2016-02-18T23:52:30",null,"Fabrice",789456,"Darty",null,null,null,"vante"]
["Motos",null,null,null,null,null,null,null,null,115,null,"RUE OBERKAMPF","PARIS 15",null,"2016-03-21T23:44:19",null,"Gérard",123456,"Carrefour",null,null,null,"En attente"]
["Avion",null,null,null,null,null,null,null,null,1,null,"QUAI SAINT-BERNARD","PARIS 05",null,"2016-06-30T23:44:17",null,"Azize",519951,"Fnac",null,null,null,"attentes"]
["Voiture",null,null,null,null,null,null,null,null,1,null,"RUE D'EUPATORIA","PARIS 20",null,"2016-06-30T23:37:52",null,"Mansour",456321,"Fnac",null,null,null,"attante"]
["Vélo",null,null,null,null,null,null,null,null,1,null,"VOIE GEORGES POMPIDOU","PARIS 04",null,"2017-01-30T23:34:28",null,"Adam",789654,"Lidl",null,null,null,"Livraison"]
["Maison",null,null,null,null,null,null,null,null,null,null,"QUAI SAINT-BERNARD","PARIS 05",null,"2017-05-15T23:25:43",null,"victor",258741,"dia",null,null,null,"livraizon"]
["Frigo",null,null,null,null,null,null,null,null,null,null,"QUAI SAINT-BERNARD","PARIS 05",null,"2017-04-01T23:17:43",null,"Thomas",321456,"BHV",null,null,null,"livréson"]
["Meuble",null,null,null,null,null,null,null,null,1,null,"VOIE EXPRESS RIVE GAUCHE","PARIS 13",null,"2017-06-03T23:04:02",null,"Véronique",357753,"Castorama",null,null,null,"fait"]
["Chaise",null,null,null,null,null,null,null,null,1,null,"PROMENADE MAURICE CAREME","PARIS 04",null,"2017-06-10T23:03:53",null,"Alice",528321,"Castorama",null,null,null,"Ventes"]
["Porte",null,null,null,null,null,null,null,null,1,null,"PARVIS DE NOTRE DAME","PARIS 05",null,"2017-06-05T23:02:45",null,"Elodie",458752,"Nice",null,null,null,"Vente"]
["Vitre",null,null,null,null,null,null,null,null,1,null,"PONT CHARLES DE GAULLE","PARIS 12",null,"2017-06-20T22:41:21",null,"Samira",584632,"Lille",null,null,null,"vante"]
["Bateaux",null,null,null,null,null,null,null,null,92,null,"BOULEVARD DE GRENELLE","PARIS 15",null,"2017-06-30T22:29:32",null,"Roger",985463,"Lille",null,null,null,"En attente"]
["Navire",null,null,null,null,null,null,null,null,92,null,"BOULEVARD DE GRENELLE","PARIS 15",null,"2017-06-30T22:24:16",null,"Stephane",963145,"Castorama",null,null,null,"attentes"]
["Camion",null,null,null,null,null,null,null,null,8,null,"RUE DE BELLEVILLE","PARIS 20",null,"2017-06-15T22:11:33",null,"Thiérry",147536,"Castorama",null,null,null,"attante"]
["Motos",null,null,null,null,null,null,null,null,11,"BIS","PLACE DE LA NATION","PARIS 11",null,"2017-07-30T22:07:39",null,"Thomas",125698,"Dia",null,null,null,"Livraison"]
["Avion",null,null,null,null,null,null,null,null,1,null,"AVENUE GUSTAVE EIFFEL","PARIS 07",null,"2017-03-30T22:06:04",null,"Valèrie",584563,"Giffi",null,null,null,"livraizon"]
["Voiture",null,null,null,null,null,null,null,null,1,null,"PLACE JULES JOFFRIN","PARIS 18",null,"2017-07-10T22:03:09",null,"Sophie",354621,"Tati",null,null,null,"livréson"]
["Vélo",null,null,null,null,null,null,null,null,1,null,"AVENUE GUSTAVE EIFFEL","PARIS 07",null,"2017-05-30T22:01:11",null,"Stéphanie",786687,"Tati",null,null,null,"fait"]
["Maison",null,null,null,null,null,null,null,null,1,null,"AVENUE ANATOLE FRANCE","PARIS 07",null,"2017-01-07T21:57:39",null,"Gabriel",789410,"Lyon",null,null,null,"Ventes"]
["Frigo",null,null,null,null,null,null,null,null,151,null,"RUE DU TEMPLE","PARIS 03",null,"2017-02-26T21:57:32",null,"Jules",321103,"Toulouse",null,null,null,"Vente"]
["Meuble",null,null,null,null,null,null,null,null,117,null,"RUE DE BELLEVILLE","PARIS 19",null,"2017-04-22T21:55:30",null,"Lucas",953654,"Lidl",null,null,null,"vante"]
["Chaise",null,null,null,null,null,null,null,null,94,null,"BOULEVARD BARBES","PARIS 18",null,"2017-05-29T21:55:03",null,"Louis",654236,"Champs",null,null,null,"En attente"]
["Porte",null,null,null,null,null,null,null,null,94,null,"BOULEVARD BARBES","PARIS 18",null,"2017-03-03T21:53:32",null,"Adam",975321,"Canada",null,null,null,"attentes"]
["Vitre",null,null,null,null,null,null,null,null,8,null,"RUE DE BELLEVILLE","PARIS 20",null,"2017-06-30T21:51:54",null,"Hugo",null,null,null,null,null,"attante"]

{"sheet":"Data_2","index":3,"n_rows":27,"n_cols":17,"rows_kept":27,"cut":false,"hidden":false,"merged":[]}
["Produits","Date","Adr Arrond","Colonne4","Colonne5","Adr Num Voie","Adr Design Voie","Adr Denom Voie","État","Affectation","Nom","Num Agent","Mois","Année","Colonne3",{"$f":"SUBTOTAL(102,Tableau_Évolution_de_PV_2014_2015_2016_2017__DPSP[Colonne5])","v":0},{"$f":"SUBTOTAL(103,Tableau_Évolution_de_PV_2014_2015_2016_2017__DPSP[Colonne4])","v":0}]
["Bateaux","2016-02-21",4,null,null,8,"RUE","JACQUES COEUR","Ventes","Dia","Alain",102359,{"$f":"MONTH(B2)","v":2},{"$f":"YEAR(B2)","v":2016}]
["Navire","2016-04-28",15,null,null,1,"ALL","DU GENERAL DENAIN","Vente","Lidl","victor",562311,4,2016]
["Camion","2016-04-14",1,null,null,8,"RUE","JEAN-JACQUES ROUSSEAU","vante","Darty","Fabrice",789456,4,2016]
["Motos","2016-04-28",10,null,null,33,"BD","DE MAGENTA","En attente","Carrefour","Gérard",123456,4,2016]
["Avion","2016-05-02",3,null,null,10,"RUE","RAMBUTEAU","attentes","Fnac","Azize",519951,5,2016]
["Voiture","2016-05-04",10,null,null,6,"RUE","DE BELZUNCE","attante","Fnac","Mansour",456321,5,2016]
["Vélo","2016-05-26",10,null,null,11,"RUE","DE ROCROY","Livraison","Lidl","Adam",789654,5,2016]
["Maison","2016-04-28",18,null,null,35,"RUE","DES ABBESSES","livraizon","dia","victor",258741,4,2016]
["Frigo","2016-08-25",18,null,null,68,"BD","DE ROCHECHOUART","livréson","BHV","Thomas",321456,8,2016]
["Meuble","2016-08-25",9,null,null,92,"RUE","SAINT-LAZARE","fait","Castorama","Véronique",357753,8,2016]
["Chaise","2016-08-25",9,null,null,35,"RUE","DU FAUBOURG MONTMARTRE","Ventes","Castorama","Alice",528321,8,2016]
["Porte","2016-08-25",9,null,null,2,"RUE","DE LA GRANGE BATELIERE","Vente","Nice","Elodie",458752,8,2016]
["Vitre","2016-08-30",18,null,null,66,"RUE","MARCADET","vante","Lille","Samira",584632,8,2016]
["Bateaux","2016-01-18",1,null,null,2,"RUE","MONTMARTRE","En attente","Lille","Roger",985463,1,2016]
["Navire","2016-01-20",10,null,null,10,"RUE","LOUIS BLANC","attentes","Castorama","Stephane",963145,1,2016]
["Camion","2016-01-22",2,null,null,20,"RUE","DU QUATRE SEPTEMBRE","attante","Castorama","Thiérry",147536,1,2016]
["Motos","2016-01-25",1,null,null,13,"RUE","SAINT-DENIS","Livraison","Dia","Thomas",125698,1,2016]
["Avion","2017-02-17",4,null,null,22,"BD","DE SEBASTOPOL","livraizon","Giffi","Valèrie",584563,2,2017]
["Voiture","2017-02-09",5,null,null,3,"PL","DE LA CONTRESCARPE","livréson","Tati","Sophie",354621,2,2017]
["Vélo","2017-03-05",1,null,null,96,"RUE","SAINT-DENIS","fait","Tati","Stéphanie",786687,3,2017]
["Maison","2017-01-25",19,null,null,196,"BD","DE LA VILLETTE","Ventes","Lyon","Gabriel",789410,1,2017]
["Frigo","2016-12-13",19,null,null,2,"RUE","LAUZIN","Vente","Toulouse","Jules",321103,12,2016]
["Meuble","2016-12-13",19,null,null,14,"RUE","JULES ROMAINS","vante","Lidl","Lucas",953654,12,2016]
["Chaise","2017-05-14",19,null,null,1,"RUE","DE JOINVILLE","En attente","Champs","Louis",654236,5,2017]
["Porte","2017-05-14",19,null,null,106,"BD","DE LA VILLETTE","attentes","Canada","Adam",975321,5,2017]
["Vitre",null,null,null,null,null,null,null,null,null,null,null,{"$f":"MONTH(B27)","v":1},{"$f":"YEAR(B27)","v":1900}]

{"sheet":"Data_3","index":4,"n_rows":28,"n_cols":17,"rows_kept":28,"cut":false,"hidden":false,"merged":[]}
["Réf produits","Date","Arrondissement","F4","F5","Num.","Bis/Ter","Voie","Nom vendeur","Num Agent","F11","Mois","Année","F94",{"$f":"SUBTOTAL(109,Tableau_Répartition_de_PV_par_nature_2014_2015_2016__CAPP56[F5])","v":0},null,{"$f":"SUBTOTAL(103,Tableau_Répartition_de_PV_par_nature_2014_2015_2016__CAPP56[F4])","v":25}]
[null,null,null,null,null,null,null,null,null,null,null,{"$f":"MONTH(B2)","v":1},{"$f":"YEAR(B2)","v":1900}]
[null,null,null,null,null,null,"Désignation voie","Dénomination voie",null,null,null,1,1900]
["Bateaux","2016-06-20",5,"Dia",null,102,"BOULEVARD","DE PORT-ROYAL","Alain",102359,null,6,2016]
["Navire","2016-06-20",5,"Lidl",null,31,"BOULEVARD","SAINT-GERMAIN","victor",562311,null,6,2016]
["Camion","2016-06-20",5,"Darty",null,34,"BOULEVARD","SAINT-GERMAIN","Fabrice",789456,null,6,2016]
["Motos","2016-06-23",18,"Carrefour",null,1,"PLACE","JULES JOFFRIN","Gérard",123456,null,6,2016]
["Avion","2016-06-24",3,"Fnac",null,103,"RUE","DE TURENNE","Azize",519951,null,6,2016]
["Voiture","2016-06-24",3,"Fnac",null,8,"RUE","DU GRENIER SAINT-LAZARE","Mansour",456321,null,6,2016]
["Vélo","2016-06-26",3,"Lidl",null,172,"RUE","DU TEMPLE","Adam",789654,null,6,2016]
["Maison","2016-06-25",12,"dia",null,39,"RUE","MONTGALLET","victor",258741,null,6,2016]
["Frigo","2016-06-26",3,"BHV",null,43,"RUE","NOTRE-DAME DE NAZARETH","Thomas",321456,null,6,2016]
["Meuble","2016-06-26",3,"Castorama",null,76,"RUE","CHARLOT","Véronique",357753,null,6,2016]
["Chaise","2016-06-24",3,"Castorama",null,43,"RUE","BEAUBOURG","Alice",528321,null,6,2016]
["Porte","2016-06-24",3,"Nice",null,8,"RUE","DU FOIN","Elodie",458752,null,6,2016]
["Vitre","2016-06-27",18,"Lille",null,15,"RUE","CUSTINE","Samira",584632,null,6,2016]
["Bateaux","2017-07-01",18,"Lille",null,40,"RUE","DE TORCY","Roger",985463,null,7,2017]
["Navire","2017-07-02",6,"Castorama",null,12,"RUE","HAUTEFEUILLE","Stephane",963145,null,7,2017]
["Camion","2017-08-03",10,"Castorama",null,2,"RUE","MARIE ET LOUISE","Thiérry",147536,null,8,2017]
["Motos","2017-07-04",10,"Dia",null,63,"RUE","DU CHATEAU D'EAU","Thomas",125698,null,7,2017]
["Avion","2017-07-05",18,"Giffi",null,102,"RUE","LEPIC","Valèrie",584563,null,7,2017]
["Voiture","2017-07-06",18,"Tati",null,8,"RUE","TARDIEU","Sophie",354621,null,7,2017]
["Vélo","2017-06-07",16,"Tati",null,11,"RUE","POUSSIN","Stéphanie",786687,null,6,2017]
["Maison","2017-05-08",16,"Lyon",null,90,"AVENUE","VICTOR HUGO","Gabriel",789410,null,5,2017]
["Frigo","2017-02-09",16,"Toulouse",null,110,"AVENUE","VICTOR HUGO","Jules",321103,null,2,2017]
["Meuble","2017-04-10",16,"Lidl",null,7,"RUE","GREUZE","Lucas",953654,null,4,2017]
["Chaise","2017-07-11",16,"Champs",null,31,"AVENUE","GEORGES MANDEL","Louis",654236,null,7,2017]
["Porte","2017-07-12",16,"Canada",null,135,"RUE","DE LA POMPE","Adam",975321,null,7,2017]